Workbook

Sheet At a glance
A2: Gerbrandt van Heerden
A3: At a glancea
A4: Number of houses owned and fully paid off (2023) | B4: 10.66m
A5: Proportion of houses owned and fully paid off belonging to Black people (2023) | B5: 0.848
A6: Proportion of houses owned and fully paid off belonging to White people (2023) | B6: 0.067
A7: Proportion of houses owned and fully paid off belonging to men (2023) | B7: 0.515
A8: Proportion of houses owned and fully paid off belonging to women (2023) | B8: 0.485
A9: Proportional share of houses owned and not yet fully paid off to a bank belonging to Black people (2023) | B9: 0.473
A10: Proportion of houses owned and not yet fully paid off to a bank belonging to White people (2023) | B10: 0.307
A11: People per motor car (2024) | B11: 8
A12: Households owning a television set (2023) | B12: 14.89m
A13: Households owning a refrigerator (2023) | B13: 15.32m
A14: Households with a computer/desktop/laptop (2023) | B14: 4.72m
A15: Microwave oven (2023) | B15: 11.08m
A16: Proportion of households that have fallen behind on store card payments | B16: 0.23
A17: Proportion of households that have fallen behind on household bills | B17: 0.3
A18: Proportion of households that have fallen behind on rent or home loan payments | B18: 0.15
A19: Total outstanding consumer creditb | B19: R2.10tn
A20: Proportion of households that receive an income from a salary/wage/commission (2023) | B20: 0.622
A21: Proportion of households that receive an income from a business (2023) | B21: 0.162
A22: Proportion of households that receive an income from a grant (2023) | B22: 0.505
A23: Average monthly earningsc (02/24) | B23: 23552
A24: Proportion of households spending R10 000 or more per month (2023) | B24: 0.197
A25: Proportion of Black households spending R10 000 or more per month (2023) | B25: 0.125
A26: Proportion of White households spending R10 000 or more per month (2023) | B26: 0.733
A27: Proportion of households classified as poor by metropolitan municipality (2023) | B27: 0.249
A28: Quality of Life Index Score (South Africa) | B28: 5.7/10
A29: a Figures are for 2024 unless otherwise stated in brackets.
A30: b At current prices in the formal non-agricultural sector.
A31: c As at quarter ended June 2024.

Sheet ASSETS

Sheet Fixed assets

Sheet Fixed capital stock
A2: ASSETS
A4: Fixed assets
A6: Fixed capital stock
A8: Fixed capitala stock by economic sector, 2016-23
B10: 2016 | C10: 2019 | D10: 2020 | E10: 2021 | F10: 2022 | G10: 2023 | H10: Change 2016-23
A11: Economic sector | B11: —Rbnb—
A12: Agriculture, forestry and fishing | B12: 0.276 | C12: 0.287222 | D12: 0.289412 | E12: 0.286692 | F12: 0.29 | G12: 0.3 | H12: =(G12-B12)/B12 -> 0.08695652174
A13: Mining and quarrying | B13: 0.52 | C13: 0.54 | D13: 0.54 | E13: 0.529591 | F13: 0.53 | G13: 0.55 | H13: =(G13-B13)/B13 -> 0.05769230769
A14: Manufacturing | B14: 0.73 | C14: 0.74 | D14: 0.73 | E14: 0.71 | F14: 0.71 | G14: 0.71 | H14: -0.02739726027
A15: Electricity, gas and water | B15: 0.86 | C15: 0.955609 | D15: 0.97 | E15: 0.98 | F15: 0.98 | G15: 0.99 | H15: 0.1511627907
A16: Construction (contractors) | B16: 0.06786 | C16: 0.074259 | D16: 0.072144 | E16: 0.07033 | F16: 0.07 | G16: 0.07 | H16: 0.03153551429
A17: Wholesale and retail trade, catering and accommodation | B17: 0.35 | C17: 0.367116 | D17: 0.37 | E17: 0.37 | F17: 0.38 | G17: 0.38 | H17: 0.08571428571
A18: Transport, storage and communication | B18: 0.85 | C18: 0.86 | D18: 0.848554 | E18: 0.84 | F18: 0.84 | G18: 0.84 | H18: -0.01176470588
A19: Financial intermediation, insurance, real estate and business servicesc | B19: 2.54 | C19: 2.65 | D19: 2.65 | E19: 2.66 | F19: 2.68 | G19: 2.68 | H19: 0.05511811024
A20: Community, social and personal servicesd | B20: 2.12 | C20: 2.24 | D20: 2.264185 | E20: 2.28 | F20: 2.29 | G20: 2.31 | H20: 0.08962264151
A21: Totale | B21: 8.31 | C21: 8.71 | D21: 8.72 | E21: 8.73 | F21: 8.78 | G21: 8.83 | H21: =(G21-B21)/B21 -> 0.06257521059
A22: Source: South African Reserve Bank (SARB), Quarterly Bulletin, March 2024, S-131
A23: a Fixed capital is the portion of total capital that is invested in fixed assets, such as land, buildings, vehicles, and equipment. The distinguishing feature of a fixed asset is that it may be used repeatedly or continuously in production over a long period of time, which is taken to be more than a year. Fixed assets include not only structures, machinery, and equipment but also cultivated assets such as trees or animals that are used repeatedly or continuously to produce other products such as fruit or dairy products. They also include intellectual property products such as software or artistic originals used in production.
A24: b At constant 2015 prices.
A25: c Includes transfer costs.
A26: d Includes government.
A27: e Figures may not add up vertically, owing to rounding.

Sheet Fixed capital stock by org
A2: Fixed capital stock by type of organisation (actual numbers), 2016-23
A4: Type of organisation | B4: 2016 | C4: 2019 | D4: 2020 | E4: 2021 | F4: 2022 | G4: 2023 | H4: Change 2016-23
B5: —Rbna—
A6: General government | B6: 2.2 | C6: 2.292633 | D6: 2.31 | E6: 2.32 | F6: 2.33 | G6: 2.35 | H6: =(G6-B6)/B6 -> 0.06818181818
A7: Public corporations | B7: 1.4 | C7: 1.48 | D7: 1.48 | E7: 1.47 | F7: 1.48 | G7: 1.48 | H7: =(G7-B7)/B7 -> 0.05714285714
A8: Private business enterprises | B8: 4.72 | C8: 4.94 | D8: 4.94 | E8: 4.94 | F8: 4.97 | G8: 5 | H8: 0.0593220339
A9: Total | B9: 8.31 | C9: 8.71 | D9: 8.72 | E9: =SUM(E6:E8) -> 8.73 | F9: 8.78 | G9: 8.83 | H9: 0.06257521059
A10: Source: SARB, Quarterly Bulletin, March 2024, S-131
A11: a At constant 2015 prices.

Sheet % Fixed capital stock by organi
A2: Fixed capital stock by type of organisation (proportions), 2016-23
J3: Type of organisation | K3: 2015 | L3: 2019 | M3: 2020 | N3: 2021 | O3: 2022 | P3: Change 2014-22 | Q3: Type of organisation | R3: 2016 | S3: 2019 | T3: 2020 | U3: 2021 | V3: 2022 | W3: 2023 | X3: Change 2016-23
A4: Type of organisation | B4: 2016 | C4: 2019 | D4: 2020 | E4: 2021 | F4: 2022 | G4: 2023 | H4: Change 2016-23 | K4: —Rbna— | R4: —Rbna—
A5: General government | B5: =(R5/Total831) -> 0.2647412756 | C5: =(S5/Total871) -> 0.2632184845 | D5: =(T5/Total872) -> 0.2649082569 | E5: =(U5/Total873) -> 0.2657502864 | F5: =(V5/Total878) -> 0.2653758542 | G5: =(W5/Total883) -> 0.2661381653 | H5: =(G5-B5)/B5 -> 0.005276433646 | J5: General government | K5: 2.14 | L5: 2.292633 | M5: 2.31 | N5: 2.32 | O5: 2.33 | P5: =(O5-K5)/K5 -> 0.08878504673 | Q5: General government | R5: 2.2 | S5: 2.292633 | T5: 2.31 | U5: 2.32 | V5: 2.33 | W5: 2.35 | X5: =(W5-R5)/R5 -> 0.06818181818
A6: Public corporations | B6: =(R6/Total831) -> 0.1684717208 | C6: =(S6/Total871) -> 0.1699196326 | D6: =(T6/Total872) -> 0.1697247706 | E6: =(U6/Total873) -> 0.1683848797 | F6: =(V6/Total878) -> 0.1685649203 | G6: =(W6/Total883) -> 0.167610419 | H6: =(G6-B6)/B6 -> -0.005112441353 | J6: Public corporations | K6: 1.34 | L6: 1.48 | M6: 1.47 | N6: 1.47 | O6: 1.47 | P6: =(O6-K6)/K6 -> 0.09701492537 | Q6: Public corporations | R6: 1.4 | S6: 1.48 | T6: 1.48 | U6: 1.47 | V6: 1.48 | W6: 1.48 | X6: =(W6-R6)/R6 -> 0.05714285714
A7: Private business enterprises | B7: =(R7/Total831) -> 0.567990373 | C7: =(S7/Total871) -> 0.5671641791 | D7: =(T7/Total872) -> 0.5665137615 | E7: =(U7/Total873) -> 0.5658648339 | F7: =(V7/Total878) -> 0.5660592255 | G7: =(W7/Total883) -> 0.5662514156 | H7: -0.003061596637 | J7: Private business enterprises | K7: 4.66 | L7: 4.934928 | M7: 4.92 | N7: 4.91 | O7: 4.93 | P7: 0.05793991416 | Q7: Private business enterprises | R7: 4.72 | S7: 4.94 | T7: 4.94 | U7: 4.94 | V7: 4.97 | W7: 5 | X7: 0.0593220339
A8: Totala | B8: 1 | C8: 1 | D8: 1 | E8: =SUM(E5:E7) -> 1 | F8: =SUM(F5:F7) -> 1 | G8: =SUM(G5:G7) -> 1 | H8: — | J8: Total | K8: =SUM(K5:K7) -> 8.14 | L8: 8.7 | M8: =SUM(M5:M7) -> 8.7 | N8: =SUM(N5:N7) -> 8.7 | O8: 8.73 | P8: 0.07248157248 | Q8: Total | R8: 8.31 | S8: 8.71 | T8: 8.72 | U8: =SUM(U5:U7) -> 8.73 | V8: 8.78 | W8: 8.83 | X8: 0.06257521059
A9: Source: SARB, Quarterly Bulletin, March 2024, S-131 | J9: Source: SARB, Quarterly Bulletin, March 2023, S-131
A10: a Figures should add up vertically but may not, owing to rounding.

Sheet Fixed captital stock org graph
A2: Fixed capital stock by type of organisation, 2016 and 2023
B4: 2016 | C4: 2023
A5: General government | B5: 2.2 | C5: 2.35
A6: Public corporations | B6: 1.4 | C6: 1.48
A7: Private business enterprises | B7: 4.72 | C7: 5
A8: Total | B8: =SUM(B5:B7) -> 8.32 | C8: =SUM(C5:C7) -> 8.83

Sheet Home ownership

Sheet Home ownership 2007-23
A2: Home ownership
A5: Home ownership by race (actual numbers), 2007-23
B7: —2007— | E7: —2012— | H7: —2020— | K7: —2023—
A8: Status | B8: Black | C8: Otherb | D8: Total | E8: Black | F8: Otherb | G8: Total | H8: Black | I8: Otherb | J8: Total | K8: Black | L8: Otherb | M8: Total
A9: Owned and fully paid off | B9: 6 778 000a | C9: 1338000 | D9: 8116000 | E9: 6 622 000a | F9: 1279000 | G9: 7901000 | H9: 9 331 000a | I9: 1633000 | J9: 10964000 | K9: 9 046 000a | L9: 1618000 | M9: 10663000
A10: Owned, but not yet paid offc | B10: 317000 | C10: 1921000 | D10: =SUM(B10:C10) -> 2238000 | E10: 487000 | F10: 767000 | G10: =SUM(E10:F10) -> 1254000 | H10: 308000 | I10: 205000 | J10: 513000 | K10: 568000 | L10: 634000 | M10: =SUM(K10:L10) -> 1202000
A11: Total households | B11: 7095000 | C11: =SUM(C9:C10) -> 3259000 | D11: =SUM(D9:D10) -> 10354000 | E11: 7109000 | F11: =SUM(F9:F10) -> 2046000 | G11: =SUM(E11:F11) -> 9155000 | H11: 9639000 | I11: =SUM(I9:I10) -> 1838000 | J11: =SUM(J9:J10) -> 11477000 | K11: 9614000 | L11: =SUM(L9:L10) -> 2252000 | M11: =SUM(M9:M10) -> 11865000
A12: Source: Statistics South Africa (Stats SA), General Household Survey 2007, Statistical release P0318, 10 July 2008, Table 7.16, p119; General Household Survey 2012, Statistical release P0318, 3 October 2013, Table 8.6, p112; General Household Survey 2020, Statistical release P0318, 2 December 2021, Table 8.6, p40; General Household Survey 2023 Addendum tables, Statistical release P0318, 23 May 2024, Table 8.6, p123
A13: a The high levels of homes owned and fully paid off by Black South Africans can be attributed, in large part, to the provision of housing by the State.
A14: b Includes Coloured, Indian/Asian and White.
A15: c Includes houses owned but not yet paid off to bank/financial institution or private lender.

Sheet Home ownership % 2007-23
A2: Home ownership by race (proportions), 2007-23
B4: —2007— | E4: —2012— | H4: —2020— | K4: —2023—
A5: Status | B5: Black | C5: Otherb | D5: Total | E5: Black | F5: Otherb | G5: Total | H5: Black | I5: Otherb | J5: Totald | K5: Black | L5: Otherb | M5: Totald
A6: Owned and fully paid off | B6: 83.5%a | C6: 0.165 | D6: 1 | E6: 83.8%a | F6: 0.162 | G6: 1 | H6: 85.1%a | I6: 0.149 | J6: 1 | K6: 84,8%a | L6: 0.152 | M6: 1
A7: Owned, but not yet paid offc | B7: 0.142 | C7: 0.858 | D7: =SUM(B7:C7) -> 1 | E7: 0.388 | F7: 0.612 | G7: =SUM(E7:F7) -> 1 | H7: 0.6 | I7: 0.4 | J7: 1 | K7: 0.473 | L7: 0.527 | M7: =SUM(K7:L7) -> 1
A8: Total households | B8: 0.685 | C8: 0.315 | D8: =SUM(B8:C8) -> 1 | E8: 0.777 | F8: 0.223 | G8: =SUM(E8:F8) -> 1 | H8: 0.84 | I8: 0.16 | J8: =SUM(H8:I8) -> 1 | K8: 0.81 | L8: 0.19 | M8: =SUM(K8:L8) -> 1
A9: Source: Stats SA, General Household Survey 2007, Statistical release P0318, 10 July 2008, Table 7.16, p119; General Household Survey 2012, Statistical release P0318, 3 October 2013, Table 8.6, p112; General Household Survey 2020, Statistical release P0318, 2 December 2021, Table 8.6, p40; General Household Survey 2023 Addendum tables, Statistical release P0318, 23 May 2024, Table 8.6, p123
A10: a The high levels of homes owned and fully paid off by Black South Africans can be attributed, in large part, to the provision of housing by the State.
A11: b Includes Coloured, Indian/Asian and White.
A12: c Includes houses owned but not yet paid off to bank/financial institution or private lender.
A13: d Figures should add up horizontally to 100% but may not, owing to rounding.

Sheet Home ownership by race
A2: Home ownership by race (actual numbers), 2023
A4: Status | B4: Black | C4: Coloured | D4: Indian/Asian | E4: White | F4: Total
A5: Owned and fully paid off | B5: 9 046 000a | C5: 688000 | D5: 217000 | E5: 713000 | F5: 10664000
A6: Owned, but not yet paid off to bank | B6: 490000 | C6: 162000 | D6: 67000 | E6: 318000 | F6: =SUM(B6:E6) -> 1037000
A7: Owned, but not yet paid off to private lender | B7: 78000 | C7: 20000 | D7: 7000 | E7: 60000 | F7: =SUM(B7:E7) -> 165000
A8: Total households | B8: 9614000 | C8: =SUM(C5:C7) -> 870000 | D8: =SUM(D5:D7) -> 291000 | E8: =SUM(E5:E7) -> 1091000 | F8: =SUM(F5:F7) -> 11866000
A9: Source: Stats SA, General Household Survey 2023 Addendum tables, Statistical release P0318, 23 May 2024, Table 8.6, p123
A10: a The high levels of homes owned and fully paid off by Black South Africans can be attributed, in large part, to the provision of housing by the State.

Sheet Home ownership by race %
A2: Home ownership by race (proportions), 2023 | H2: Home ownership by race (actual numbers), 2023
A4: Status | B4: Black | C4: Coloured | D4: Indian/Asian | E4: White | F4: Total b | H4: Status | I4: Black | J4: Coloured | K4: Indian/Asian | L4: White | M4: Total
A5: Owned and fully paid off | B5: 84,8%a | C5: =(J5/Total1066456) -> 0.06451612903 | D5: =(K5/Total1066456) -> 0.02034883721 | E5: =(L5/Total1066456) -> 0.06686046512 | F5: 1 | H5: Owned and fully paid off | I5: 9 046 000a | J5: 688000 | K5: 217000 | L5: 713000 | M5: 10664000
A6: Owned, but not yet paid off to bank | B6: =(I6/Total1037657) -> 0.4725168756 | C6: =(J6/Total1037657) -> 0.156219865 | D6: =(K6/Total1037657) -> 0.06460945034 | E6: =(L6/Total1037657) -> 0.3066538091 | F6: 1 | H6: Owned, but not yet paid off to bank | I6: 490000 | J6: 162000 | K6: 67000 | L6: 318000 | M6: =SUM(I6:L6) -> 1037000
A7: Owned, but not yet paid off to private lender | B7: =(I7/Total16598) -> 0.4727272727 | C7: =(J7/Total16598) -> 0.1212121212 | D7: =(K7/Total16598) -> 0.04242424242 | E7: =(L7/Total16598) -> 0.3636363636 | F7: 1 | H7: Owned, but not yet paid off to private lender | I7: 78000 | J7: 20000 | K7: 7000 | L7: 60000 | M7: =SUM(I7:L7) -> 165000
A8: Total households | B8: =(I8/Total117589) -> 0.810214057 | C8: =(J8/Total117589) -> 0.07331872577 | D8: =(K8/Total117589) -> 0.02452384965 | E8: =(L8/Total117589) -> 0.0919433676 | F8: =SUM(B8:E8) -> 1 | H8: Total households | I8: 9614000 | J8: =SUM(J5:J7) -> 870000 | K8: =SUM(K5:K7) -> 291000 | L8: =SUM(L5:L7) -> 1091000 | M8: =SUM(M5:M7) -> 11866000
A9: Source: Stats SA, General Household Survey 2023 Addendum tables, Statistical release P0318, 23 May 2024, Table 8.6, p123
A10: a The high levels of homes owned and fully paid off by Black South Africans can be attributed, in large part, to the provision of housing by the State.
A11: b Figures should add up horizontally to 100% but may not, owing to rounding.

Sheet Vertical Houses ownedf but
B2: Houses owned, but not yet paid off to bank/financial institution or private lender, 2023
B4: Status | C4: Black | D4: Coloured | E4: Indian/Asian | F4: White | G4: Total
B5: Owned, but not yet paid off to banka | C5: 568000 | D5: 182000 | E5: 74000 | F5: 378000 | G5: 1202000
C6: =(C5/C7) -> 0.03609098996 | D6: =(D5/D7) -> 0.1425215348 | E6: =(E5/E7) -> 0.1666666667 | F6: =(F5/F7) -> 0.2445019405 | G6: =(G5/G7) -> 0.06324651408
B7: Total households | C7: 15738000 | D7: 1277000 | E7: 444000 | F7: 1546000 | G7: 19005000
B8: Source: Stats SA, General Household Survey 2023 Addendum tables, Statistical release P0318, 23 May 2024, Table 8.6, p123
B9: a Includes houses owned but not yet paid off to bank/financial institution or private lender.
B13: Status | C13: Black | D13: Coloured | E13: Indian/Asian | F13: White | G13: Total
B14: Owned and fully paid off | C14: 8 894 000a | D14: 661000 | E14: 170000 | F14: 675000 | G14: 10401000
B15: Owned, but not yet paid off to bank | C15: 509000 | D15: 157000 | E15: 98000 | F15: 413000 | G15: =SUM(C15:F15) -> 1177000
B16: Owned, but not yet paid off to private lender | C16: 130000 | D16: 20000 | E16: 10000 | F16: 45000 | G16: =SUM(C16:F16) -> 205000
B17: Total households | C17: 9533000 | D17: =SUM(D14:D16) -> 838000 | E17: =SUM(E14:E16) -> 278000 | F17: =SUM(F14:F16) -> 1133000 | G17: =SUM(G14:G16) -> 11783000

Sheet Tenure

Sheet Household tenure status by sex
A1: Tenure
A3: Household tenure status by sex (actual numbers), 2013 and 2023
B5: —2013— | E5: —2023— | H5: Change (total)
A6: Ownership | B6: Male | C6: Female | D6: Totala | E6: Male | F6: Female | G6: Totala
A7: Owned and fully paid off | B7: 4258000 | C7: 4059000 | D7: 8317000 | E7: 5496000 | F7: 5167000 | G7: =SUM(E7:F7) -> 10663000 | H7: =(G7-D7)/D7 -> 0.2820728628
A8: Owned, but not yet paid off to bank | B8: 869000 | C8: 272000 | D8: 1141000 | E8: 756000 | F8: 281000 | G8: =SUM(E8:F8) -> 1037000 | H8: =(G8-D8)/D8 -> -0.09114811569
A9: Owned, but not yet paid off to private lender | B9: 151000 | C9: 82000 | D9: 233000 | E9: 126000 | F9: 39000 | G9: 165000 | H9: =(G9-D9)/D9 -> -0.2918454936
A10: Rental
A11: Rented | B11: 2131000 | C11: 912000 | D11: 3043000 | E11: 2800000 | F11: 1473000 | G11: 4273000 | H11: =(G11-D11)/D11 -> 0.4042063753
A12: Occupied rent-free | B12: 1222000 | C12: 741000 | D12: 1962000 | E12: 1578000 | F12: 916000 | G12: 2495000 | H12: =(G12-D12)/D12 -> 0.2716615698
A13: Other/unspecified tenure status | B13: 91000 | C13: 63000 | D13: 155000 | E13: 80000 | F13: 52000 | G13: =SUM(E13:F13) -> 132000 | H13: =(G13-D13)/D13 -> -0.1483870968
A14: Rented from other | B14: 148000 | C14: 91000 | D14: 240000 | E14: 127000 | F14: 112000 | G14: 239000 | H14: =(G14-D14)/D14 -> -0.004166666667
A15: Total householdsa | B15: 8881000 | C15: 6226000 | D15: 15107000 | E15: 10963000 | F15: 8042000 | G15: =SUM(E15:F15) -> 19005000 | H15: =(G15-D15)/D15 -> 0.2580260806
A16: Source: Stats SA, General Household Survey 2013, Statistical release P0318, 18 June 2014, Table 8,6, p129; General Household Survey 2023 Addendum tables, Statistical release P0318, 23 May 2024, Table 8.6, p123
A17: a Figures should add up vertically and horizontally but may not, owing to rounding.

Sheet Graph Household tenure status
C3: Change in household tenure status, 2013-23
B4: Owned and fully paid off | C4: 0.282
B5: Owned, but not yet paid off to bank | C5: -0.091
B6: Rented | C6: -0.292
B7: Other/unspecified tenure status | C7: 0.077
B8: Total households | C8: 0.258

Sheet Tenure status by sex %
A2: Tenure status by sex (proportionsa), 2013 and 2023 | O2: Household tenure status by sex (actual numbers), 2013 and 2023
B4: —2013— | E4: —2023— | I4: —2022— | L4: Change (total) | P4: —2023— | S4: Change (total)
A5: Ownership | B5: Male | C5: Female | D5: Total | E5: Male | F5: Female | G5: Total | I5: Male | J5: Female | K5: Totala | O5: Ownership | P5: Male | Q5: Female | R5: Totala
A6: Owned and fully paid off | B6: 0.5121 | C6: 0.488 | D6: 0.551 | E6: =(P6/R6) -> 0.5154271781 | F6: =(Q6/R6) -> 0.4845728219 | G6: =SUM(E6:F6) -> 1 | I6: 5304000 | J6: 5097000 | K6: =SUM(I6:J6) -> 10401000 | L6: =(K6-H6)/H6 ->  | O6: Owned and fully paid off | P6: 5496000 | Q6: 5167000 | R6: =SUM(P6:Q6) -> 10663000 | S6: =(R6-#REF!)/#REF! -> 
A7: Owned, but not yet paid off to bank | B7: 0.762 | C7: 0.238 | D7: 0.076 | E7: =(P7/R7) -> 0.7290260366 | F7: =(Q7/R7) -> 0.2709739634 | G7: =SUM(E7:F7) -> 1 | I7: 886000 | J7: 291000 | K7: =SUM(I7:J7) -> 1177000 | L7: =(K7-H7)/H7 ->  | O7: Owned, but not yet paid off to bank | P7: 756000 | Q7: 281000 | R7: =SUM(P7:Q7) -> 1037000 | S7: =(R7-#REF!)/#REF! -> 
A8: Owned, but not yet paid off to private lender | B8: 0.648 | C8: 0.352 | D8: 0.015 | E8: =(P8/R8) -> 0.7636363636 | F8: =(Q8/R8) -> 0.2363636364 | G8: 1 | I8: 143000 | J8: 62000 | K8: 206000 | L8: =(K8-H8)/H8 ->  | O8: Owned, but not yet paid off to private lender | P8: 126000 | Q8: 39000 | R8: 165000 | S8: =(R8-#REF!)/#REF! -> 
A9: Rental | O9: Rental
A10: Rented | B10: 0.7 | C10: 0.3 | D10: 0.201 | E10: =(P10/R10) -> 0.6552773227 | F10: =(Q10/R10) -> 0.3447226773 | G10: 1 | I10: 2567000 | J10: 1248000 | K10: 3816000 | L10: =(K10-H10)/H10 ->  | O10: Rented | P10: 2800000 | Q10: 1473000 | R10: 4273000 | S10: =(R10-#REF!)/#REF! -> 
A11: Occupied rent-free | B11: 0.623 | C11: 0.378 | D11: 0.13 | E11: =(P11/R11) -> 0.6324649299 | F11: =(Q11/R11) -> 0.3671342685 | G11: 0.9995991984 | I11: 1478000 | J11: 929000 | K11: 2408000 | L11: =(K11-H11)/H11 ->  | O11: Occupied rent-free | P11: 1578000 | Q11: 916000 | R11: 2495000 | S11: =(R11-#REF!)/#REF! -> 
A12: Other/unspecified tenure status | B12: 0.587 | C12: 0.406 | D12: 0.01 | E12: =(P12/R12) -> 0.6060606061 | F12: =(Q12/R12) -> 0.3939393939 | G12: 1 | I12: 115000 | J12: 52000 | K12: =SUM(I12:J12) -> 167000 | L12: =(K12-H12)/H12 ->  | O12: Other/unspecified tenure status | P12: 80000 | Q12: 52000 | R12: =SUM(P12:Q12) -> 132000 | S12: =(R12-#REF!)/#REF! -> 
A13: Rented from other | B13: 0.617 | C13: 0.379 | D13: 0.016 | E13: =(P13/R13) -> 0.5313807531 | F13: =(Q13/R13) -> 0.4686192469 | G13: 1 | I13: 189000 | J13: 115000 | K13: 303000 | L13: =(K13-H13)/H13 ->  | O13: Rented from other | P13: 127000 | Q13: 112000 | R13: 239000 | S13: =(R13-#REF!)/#REF! -> 
A14: Total households | B14: 0.588 | C14: 0.412 | D14: 1 | E14: =(P14/R14) -> 0.5768481978 | F14: =(Q14/R14) -> 0.4231518022 | G14: 1 | I14: 10683000 | J14: 7794000 | K14: =SUM(I14:J14) -> 18477000 | L14: =(K14-H14)/H14 ->  | O14: Total householdsa | P14: 10963000 | Q14: 8042000 | R14: =SUM(P14:Q14) -> 19005000 | S14: =(R14-#REF!)/#REF! -> 
A15: Source: Stats SA, General Household Survey 2013, Statistical release P0318, 18 June 2014, Table 8,6, p129; General Household Survey 2023 Addendum tables, Statistical release P0318, 23 May 2024, Table 8.6, p123 | O15: Source: Stats SA, General Household Survey 2013, Statistical release P0318, 18 June 2014, Table 8,6, p129; General Household Survey 2023 Addendum tables, Statistical release P0318, 23 May 2024, Table 8.6, p123
A16: a CRA calculations.

Sheet Tenure status by prov#
A2: Household tenure status by province (actual numbers), 2023
A4: Ownership | B4: Eastern Cape | C4: Free State | D4: Gauteng | E4: KwaZulu-Natal | F4: Limpopo | G4: Mpumalanga | H4: North West | I4: Northern Cape | J4: Western Cape | K4: South Africab
A5: Owned and fully paid off | B5: 1147000 | C5: 632000 | D5: 2050000 | E5: 2326000 | F5: 1234000 | G5: 1041000 | H5: 936000 | I5: 253000 | J5: 1045000 | K5: 10663000
A6: Owned, but not yet paid off to bank | B6: 48000 | C6: 26000 | D6: 517000 | E6: 102000 | F6: 22000 | G6: 29000 | H6: 25000 | I6: 9000 | J6: 260000 | K6: 1037000
A7: Owned, but not yet paid off to private lender | B7: 6000 | C7: 4000 | D7: 81000 | E7: 21000 | F7: —a | G7: 4000 | H7: —a | I7: 4000 | J7: 42000 | K7: 165000
A8: Rental
A9: Rented | B9: 203000 | C9: 146000 | D9: 2078000 | E9: 539000 | F9: 253000 | G9: 227000 | H9: 247000 | I9: 47000 | J9: 532000 | K9: 4273000
A10: Occupied rent-free | B10: 325000 | C10: 173000 | D10: 902000 | E10: 264000 | F10: 247000 | G10: 177000 | H10: 168000 | I10: 51000 | J10: 187000 | K10: 2495000
A11: Other/unspecified tenure status | B11: 13000 | C11: —a | D11: 75000 | E11: 9000 | F11: —a | G11: —a | H11: —a | I11: 6000 | J11: 10000 | K11: 112000
A12: Rented from other | B12: 19000 | C12: 17000 | D12: 77000 | E12: 27000 | F12: 12000 | G12: 12000 | H12: 8000 | I12: 10000 | J12: 58000 | K12: 132000
A13: Total households | B13: 1761000 | C13: 999000 | D13: 5779000 | E13: 3292000 | F13: 1775000 | G13: 1493000 | H13: 1390000 | I13: 380000 | J13: 2136000 | K13: 19004000
A14: Source: Stats SA, General Household Survey 2023 Addendum tables, Statistical release P0318, 23 May 2024, Table 8.5, p122
A15: a Figures are too small to provide reliable estimates.
A16: b Figures should add up vertically and horizontally but may not, owing to rounding.

Sheet % Household tenure status by pr
A2: Household tenure status by province (proportionsa), 2023 | X2: Household tenure status by province (actual numbers), 2023
A4: Ownership | B4: Eastern Cape | C4: Free State | D4: Gauteng | E4: KwaZulu-Natal | F4: Limpopo | G4: Mpumalanga | H4: North West | I4: Northern Cape | J4: Western Cape | K4: South Africa | M4: Ownership | N4: Eastern Cape | O4: Free State | P4: Gauteng | Q4: KwaZulu-Natal | R4: Limpopo | S4: Mpumalanga | T4: North West | U4: Northern Cape | V4: Western Cape | W4: South Africab | X4: Ownership | Y4: Eastern Cape | Z4: Free State | AA4: Gauteng | AB4: KwaZulu-Natal | AC4: Limpopo | AD4: Mpumalanga | AE4: North West | AF4: Northern Cape | AG4: Western Cape | AH4: South Africab
A5: Owned and fully paid off | B5: =(Y5/total1761) -> 0.6513344691 | C5: =(Z5/total999) -> 0.6326326326 | D5: =(AA5/total5779) -> 0.3547326527 | E5: =(AB5/total3292) -> 0.7065613609 | F5: =(AC5/total1775) -> 0.6952112676 | G5: =(AD5/total1493) -> 0.6972538513 | H5: =(AE5/total1290) -> 0.673381295 | I5: =(AF5/total380) -> 0.6657894737 | J5: =(AG5/total2136) -> 0.4892322097 | K5: =(AH5/total190004) -> 0.5610924016 | M5: Owned and fully paid off | N5: 1181000 | O5: 613000 | P5: 2140000 | Q5: 1988000 | R5: 1256000 | S5: 1046000 | T5: 944000 | U5: 255000 | V5: 978000 | W5: =SUM(N5:V5) -> 10401000 | X5: Owned and fully paid off | Y5: 1147000 | Z5: 632000 | AA5: 2050000 | AB5: 2326000 | AC5: 1234000 | AD5: 1041000 | AE5: 936000 | AF5: 253000 | AG5: 1045000 | AH5: 10663000
A6: Owned, but not yet paid off to bank | B6: =(Y6/total1761) -> 0.0272572402 | C6: =(Z6/total999) -> 0.02602602603 | D6: =(AA6/total5779) -> 0.08946184461 | E6: =(AB6/total3292) -> 0.03098420413 | F6: =(AC6/total1775) -> 0.0123943662 | G6: =(AD6/total1493) -> 0.01942397857 | H6: =(AE6/total1290) -> 0.01798561151 | I6: =(AF6/total380) -> 0.02368421053 | J6: =(AG6/total2136) -> 0.1217228464 | K6: =(AH6/total190004) -> 0.05456745948 | M6: Owned, but not yet paid off to bank | N6: 50000 | O6: 18000 | P6: 564000 | Q6: 147000 | R6: 19000 | S6: 26000 | T6: 30000 | U6: 13000 | V6: 309000 | W6: 1177000 | X6: Owned, but not yet paid off to bank | Y6: 48000 | Z6: 26000 | AA6: 517000 | AB6: 102000 | AC6: 22000 | AD6: 29000 | AE6: 25000 | AF6: 9000 | AG6: 260000 | AH6: 1037000
A7: Owned, but not yet paid off to private lender | B7: =(Y7/total1761) -> 0.003407155026 | C7: =(Z7/total999) -> 0.004004004004 | D7: =(AA7/total5779) -> 0.01401626579 | E7: =(AB7/total3292) -> 0.006379100851 | F7: —b | G7: =(AD7/total1493) -> 0.002679169457 | H7: —b | I7: =(AF7/total380) -> 0.01052631579 | J7: =(AG7/total2136) -> 0.01966292135 | K7: =(AH7/total190004) -> 0.008682382656 | M7: Owned, but not yet paid off to private lender | N7: 6000 | O7: 11000 | P7: 84000 | Q7: 39000 | R7: 13000 | S7: 15000 | T7: 5000 | U7: 4000 | V7: 29000 | W7: =SUM(N7:V7) -> 206000 | X7: Owned, but not yet paid off to private lender | Y7: 6000 | Z7: 4000 | AA7: 81000 | AB7: 21000 | AC7: —a | AD7: 4000 | AE7: —a | AF7: 4000 | AG7: 42000 | AH7: 165000
A8: Rental | M8: Rental | X8: Rental
A9: Rented | B9: =(Y9/total1761) -> 0.1152754117 | C9: =(Z9/total999) -> 0.1461461461 | D9: =(AA9/total5779) -> 0.3595777816 | E9: =(AB9/total3292) -> 0.1637302552 | F9: =(AC9/total1775) -> 0.1425352113 | G9: =(AD9/total1493) -> 0.1520428667 | H9: =(AE9/total1290) -> 0.1776978417 | I9: =(AF9/total380) -> 0.1236842105 | J9: =(AG9/total2136) -> 0.2490636704 | K9: =(AH9/total190004) -> 0.2248474005 | M9: Rented | N9: 179000 | O9: 145000 | P9: 1879000 | Q9: 457000 | R9: 252000 | S9: 180000 | T9: 226000 | U9: 46000 | V9: 452000 | W9: 3816000 | X9: Rented | Y9: 203000 | Z9: 146000 | AA9: 2078000 | AB9: 539000 | AC9: 253000 | AD9: 227000 | AE9: 247000 | AF9: 47000 | AG9: 532000 | AH9: 4273000
A10: Occupied rent-free | B10: =(Y10/total1761) -> 0.1845542306 | C10: =(Z10/total999) -> 0.1731731732 | D10: =(AA10/total5779) -> 0.1560823672 | E10: =(AB10/total3292) -> 0.08019441069 | F10: =(AC10/total1775) -> 0.1391549296 | G10: =(AD10/total1493) -> 0.1185532485 | H10: =(AE10/total1290) -> 0.1208633094 | I10: =(AF10/total380) -> 0.1342105263 | J10: =(AG10/total2136) -> 0.08754681648 | K10: =(AH10/total190004) -> 0.1312881499 | M10: Occupied rent-free | N10: 292000 | O10: 167000 | P10: 762000 | Q10: 512000 | R10: 165000 | S10: 163000 | T10: 133000 | U10: 46000 | V10: 168000 | W10: 2408000 | X10: Occupied rent-free | Y10: 325000 | Z10: 173000 | AA10: 902000 | AB10: 264000 | AC10: 247000 | AD10: 177000 | AE10: 168000 | AF10: 51000 | AG10: 187000 | AH10: 2495000
A11: Other/unspecified tenure status | B11: =(Y11/total1761) -> 0.007382169222 | C11: —b | D11: =(AA11/total5779) -> 0.01297802388 | E11: =(AB11/total3292) -> 0.002733900365 | F11: —b | G11: —b | H11: —b | I11: =(AF11/total380) -> 0.01578947368 | J11: =(AG11/total2136) -> 0.00468164794 | K11: =(AH11/total190004) -> 0.005893496106 | M11: Other/unspecified tenure status | N11: 13000 | O11: 4000 | P11: 81000 | Q11: 21000 | R11: 6000 | S11: 5000 | T11: —a | U11: —a | V11: 31000 | W11: 167000 | X11: Other/unspecified tenure status | Y11: 13000 | Z11: —a | AA11: 75000 | AB11: 9000 | AC11: —a | AD11: —a | AE11: —a | AF11: 6000 | AG11: 10000 | AH11: 112000
A12: Rented from other | B12: =(Y12/total1761) -> 0.01078932425 | C12: =(Z12/total999) -> 0.01701701702 | D12: =(AA12/total5779) -> 0.01332410452 | E12: =(AB12/total3292) -> 0.008201701094 | F12: =(AC12/total1775) -> 0.00676056338 | G12: =(AD12/total1493) -> 0.008037508372 | H12: =(AE12/total1290) -> 0.005755395683 | I12: =(AF12/total380) -> 0.02631578947 | J12: =(AG12/total2136) -> 0.02715355805 | K12: =(AH12/total190004) -> 0.006945906125 | M12: Rented from other | N12: 19000 | O12: 17000 | P12: 77000 | Q12: 37000 | R12: 15000 | S12: 11000 | T12: 10000 | U12: 7000 | V12: 111000 | W12: 303000 | X12: Rented from other | Y12: 19000 | Z12: 17000 | AA12: 77000 | AB12: 27000 | AC12: 12000 | AD12: 12000 | AE12: 8000 | AF12: 10000 | AG12: 58000 | AH12: 132000
A13: Total householdsc | B13: 1 | C13: 1 | D13: 1 | E13: 1 | F13: 1 | G13: 1 | H13: 1 | I13: 1 | J13: 1 | K13: 1 | M13: Total households | N13: 1742000 | O13: =SUM(O5:O12) -> 975000 | P13: =SUM(P5:P12) -> 5587000 | Q13: 3200000 | R13: 1729000 | S13: 1445000 | T13: 1349000 | U13: =(U5+U6+U7+U9+U10+U12) -> 371000 | V13: 2079000 | W13: 18477000 | X13: Total households | Y13: 1761000 | Z13: 999000 | AA13: 5779000 | AB13: 3292000 | AC13: 1775000 | AD13: 1493000 | AE13: 1390000 | AF13: 380000 | AG13: 2136000 | AH13: 19004000
A14: Source: Stats SA, General Household Survey 2023 Addendum tables, Statistical release P0318, 23 May 2024, Table 8.5, p122 | X14: Source: Stats SA, General Household Survey 2023 Addendum tables, Statistical release P0318, 23 May 2024, Table 8.5, p122
A15: a CRA calculations.
A16: b Proportions are too small to provide reliable estimates.
A17: c Figures should add up vertically but may not, owing to rounding.

Sheet Land redistributed
B2: Land
B5: Land redistributedab to black South Africans by province, 31 March 2022
B9: Province | C9: Hectares | F9: Land redistributedab to Black South Africans by province, 31 March 2022
B10: Eastern Cape | C10: 569189 | E10: Eastern Cape | F10: 569189
B11: Free State | C11: 434799 | E11: Free State | F11: 434799
B12: Gauteng | C12: 63575 | E12: Gauteng | F12: 63575
B13: KwaZulu-Natal | C13: 621674 | E13: KwaZulu-Natal | F13: 621674
B14: Limpopo | C14: 197973 | E14: Limpopo | F14: 197973
B15: Mpumalanga | C15: 498426 | E15: Mpumalanga | F15: 498426
B16: North West | C16: 594297 | E16: North West | F16: 594297
B17: Northern Cape | C17: 1622208 | E17: Northern Cape | F17: 1622208
B18: Western Cape | C18: 596453 | E18: Western Cape | F18: 596453
B19: Total | C19: =SUM(C10:C18) -> 5198594 | E19: Total | F19: =SUM(F10:F18) -> 5198594
B20: Source: Reply by the Minister of Agriculture, Land Reform and Rural Development to parliamentary question 2205 by Mr N.S. Matiase (EFF)
B21: a The extent of land that has been redistributed to Black people in total as a result of the land redistribution programme.
B22: b Since 27 April 1994, the cost for the Department of Agriculture, Land Reform and Rural Development to buy land for redistribution purposes amounted to R 19.8 trillion.

Sheet Title deeds Custodianship Lease
B2: Department of Agriculture, Land Reform and Rural Development (DALRRD): custodianship, long-term leases, and title deeds by province, as at 18 March 2022
C6: Land under custodianship of the DALRRDa | D6: Land under custodianship subject to long-term leasesb | E6: Land with title deeds transferred over to individual/businesses/communitiesc
B7: Province | C7: —Hectares—
B8: Eastern Cape | C8: 1759362 | D8: 187047 | E8: 7500
B9: Free State | C9: 394955 | D9: 135977 | E9: 2154
B10: Gauteng | C10: 98003 | D10: 35412 | E10: 359
B11: KwaZulu-Natal | C11: 822401 | D11: 70744 | E11: 23061
B12: Limpopo | C12: 2636848 | D12: 98232 | E12: 25472
B13: Mpumalanga | C13: 928663 | D13: 177062 | E13: 16225
B14: North West | C14: 1979980 | D14: 333797 | E14: 31167
B15: Northern Cape | C15: 1728766 | D15: 182928 | E15: 4550
B16: Western Cape | C16: 105675 | D16: 67486 | E16: 2499
B17: South Africa | C17: 10454652 | D17: 1289583 | E17: 112988
B18: Source: Reply by the Minister of Agriculture, Land Reform and Rural Development to parliamentary question 990 by Mrs A Steyn (DA).
B19: a The Department of Agriculture, Land Reform and Rural Development is the custodian of a total of 10 454 652 hectares (ha) of land.
B20: b A total of 1 289 583 hectares under the custodianship of the Department of Agriculture, Land Reform and Rural Development are subject to active long-term agricultural leases in the past five years.
B21: c The past five years 8 173 ha was transferred to individuals and businesses, while 104 850 ha was transferred to communities by the DALRRD.

Sheet Title deed targets achieved
B2: Department of Human Settlements: number of title deeds and category targets achieved
B5: Categorya | C5: Target | D5: Achieved | E5: Proportion of target achieved
B6: Pre 1994 category target | C6: 45535 | D6: 11891 | E6: =(D6/C6) -> 0.2611397826
B7: Post 1994 category target | C7: 500845 | D7: 62162 | E7: =(D7/C7) -> 0.1241142469
B8: Post 2014 category target | C8: 346842 | D8: 16938 | E8: 0.04883491619
B9: New category target | C9: 300000 | D9: 22170 | E9: 0.0739
B10: Source: Reply by the Minister of Human Settlements to parliamentary question PQ520 by Mr C.J. Poole (DA).
B11: a The Human Settlements sector title deeds programme has different categories with different targets.

Sheet Non-fixed assets

Sheet Households owning a particular
A1: Non-fixed assets
A3: Various non-fixed assets
A5: Households owning a particular asset by province (actual numbers), 2023
A7: Type of asset | B7: Eastern Cape | C7: Free State | D7: Gauteng | E7: KwaZulu-Natal | F7: Limpopo | G7: Mpumalanga | H7: North West | I7: Northern Cape | J7: Western Cape | K7: South Africa
A8: Television set | B8: 1304000 | C8: 810000 | D8: 4656000 | E8: 2447000 | F8: 1377000 | G8: 1147000 | H8: 1015000 | I8: 292000 | J8: 1845000 | K8: 14894000
A9: Swimming pool | B9: 27000 | C9: 22000 | D9: 380000 | E9: 93000 | F9: 21000 | G9: 24000 | H9: 26000 | I9: 10000 | J9: 163000 | K9: 767000
A10: DVD player/Blu ray player | B10: 382000 | C10: 345000 | D10: 1373000 | E10: 783000 | F10: 442000 | G10: 276000 | H10: 370000 | I10: 119000 | J10: 641000 | K10: 4732000
A11: Pay TV (M-Net/DStv/StarSat) subscription | B11: 941000 | C11: 611000 | D11: 3324000 | E11: 1789000 | F11: 1193000 | G11: 1005000 | H11: 738000 | I11: 245000 | J11: 1197000 | K11: 11042000
A12: Air conditioner | B12: 40000 | C12: 53000 | D12: 395000 | E12: 270000 | F12: 112000 | G12: 53000 | H12: 44000 | I12: 33000 | J12: 267000 | K12: 1265000
A13: Computer/Desktop/Laptop | B13: 267000 | C13: 208000 | D13: 1851000 | E13: 544000 | F13: 311000 | G13: 311000 | H13: 259000 | I13: 97000 | J13: 868000 | K13: =SUM(B13:J13) -> 4716000
A14: Vacuum cleaner/floor polisher | B14: 121000 | C14: 95000 | D14: 725000 | E14: 167000 | F14: 45000 | G14: 66000 | H14: 68000 | I14: 34000 | J14: 597000 | K14: 1917000
A15: Dish washing machine | B15: 37000 | C15: 35000 | D15: 464000 | E15: 132000 | F15: 26000 | G15: 41000 | H15: 35000 | I15: 12000 | J15: 302000 | K15: 1084000
A16: Washing machine | B16: 505000 | C16: 396000 | D16: 2642000 | E16: 672000 | F16: 532000 | G16: 534000 | H16: 560000 | I16: 223000 | J16: 1374000 | K16: 7439000
A17: Tumble dryer | B17: 47000 | C17: 66000 | D17: 532000 | E17: 183000 | F17: 70000 | G17: 78000 | H17: 43000 | I17: 11000 | J17: 308000 | K17: 1337000
A18: Deep freezer-free standing | B18: 266000 | C18: 226000 | D18: 839000 | E18: 837000 | F18: 633000 | G18: 390000 | H18: 279000 | I18: 145000 | J18: 714000 | K18: 4330000
A19: Refrigerator or combined fridge freezer | B19: 1378000 | C19: 828000 | D19: 4762000 | E19: 2700000 | F19: 1263000 | G19: 1143000 | H19: 1055000 | I19: 303000 | J19: 1889000 | K19: 15322000
A20: Electric stove | B20: 1535000 | C20: 890000 | D20: 5053000 | E20: 2985000 | F20: 1543000 | G20: 1309000 | H20: 1229000 | I20: 336000 | J20: 1853000 | K20: 16734000
A21: Gas stove | B21: 667000 | C21: 276000 | D21: 2033000 | E21: 894000 | F21: 203000 | G21: 264000 | H21: 339000 | I21: 148000 | J21: 968000 | K21: 5792000
A22: Solar hot water geyser | B22: 37000 | C22: 34000 | D22: 305000 | E22: 50000 | F22: 23000 | G22: 15000 | H22: 24000 | I22: 17000 | J22: 113000 | K22: 618000
A23: Solar electric panel | B23: 27000 | C23: 18000 | D23: 253000 | E23: 29000 | F23: 14000 | G23: 19000 | H23: 36000 | I23: 15000 | J23: 67000 | K23: 478000
A24: Geyser providing hot running water | B24: 290000 | C24: 220000 | D24: 2211000 | E24: 712000 | F24: 266000 | G24: 267000 | H24: 250000 | I24: 86000 | J24: 1021000 | K24: 5323000
A25: Rain water tank | B25: 617000 | C25: 26000 | D25: 91000 | E25: 375000 | F25: 285000 | G25: 123000 | H25: 144000 | I25: 18000 | J25: 165000 | K25: 1843000
A26: Home security service | B26: 99000 | C26: 65000 | D26: 1100000 | E26: 283000 | F26: 75000 | G26: 61000 | H26: 74000 | I26: 20000 | J26: 353000 | K26: 2130000
A27: Microwave oven | B27: 958000 | C27: 680000 | D27: 3685000 | E27: 1713000 | F27: 694000 | G27: 766000 | H27: 719000 | I27: 226000 | J27: 1635000 | K27: 11076000
A28: Total householdsa | B28: 1761000 | C28: 999000 | D28: 5779000 | E28: 3292000 | F28: 1755000 | G28: 1493000 | H28: 1390000 | I28: 380000 | J28: 2136000 | K28: 19005000
A29: Source: Stats SA, General Household Survey 2023 Addendum tables, Statistical release P0318, 23 May 2024 , Table 8.5, p122
A30: a Figures do not add up vertically as households typically have more than one asset.

Sheet Households owning a particu (2)
A1: Non-fixed assets
A3: Various non-fixed assets
A5: Households owning a particular asset by province (proportions), 2023
A7: Type of asset | B7: Eastern Cape | C7: Free State | D7: Gauteng | E7: KwaZulu-Natal | F7: Limpopo | G7: Mpumalanga | H7: North West | I7: Northern Cape | J7: Western Cape | K7: South Africa | M7: Type of asset | N7: Eastern Cape | O7: Free State | P7: Gauteng | Q7: KwaZulu-Natal | R7: Limpopo | S7: Mpumalanga | T7: North West | U7: Northern Cape | V7: Western Cape | W7: South Africa | X7: Type of asset | Y7: Eastern Cape | Z7: Free State | AA7: Gauteng | AB7: KwaZulu-Natal | AC7: Limpopo | AD7: Mpumalanga | AE7: North West | AF7: Northern Cape | AG7: Western Cape | AH7: South Africa
A8: Television set | B8: =(Y8/Total1765) -> 0.7404883589 | C8: =(Z8/Total998) -> 0.8108108108 | D8: =(AA8/Total5778) -> 0.8056757224 | E8: =(AB8/Total3291) -> 0.7433171324 | F8: =(AC8/Total1754) -> 0.7846153846 | G8: =(AD8/Total1492) -> 0.7682518419 | H8: =(AE8/Total1398) -> 0.7302158273 | I8: =(AF8/Total379) -> 0.7684210526 | J8: =(AG8/Total2135) -> 0.8637640449 | K8: =(AH8/Total19004) -> 0.783688503 | M8: Television set | N8: 1378000 | O8: 797000 | P8: 4618000 | Q8: 2566000 | R8: 1370000 | S8: 1155000 | T8: 982000 | U8: 292000 | V8: 1898000 | W8: 15055000 | X8: Television set | Y8: 1304000 | Z8: 810000 | AA8: 4656000 | AB8: 2447000 | AC8: 1377000 | AD8: 1147000 | AE8: 1015000 | AF8: 292000 | AG8: 1845000 | AH8: 14894000
A9: Swimming pool | B9: 0.01533219761 | C9: 0.02202202202 | D9: 0.06575532099 | E9: 0.02825030377 | F9: 0.01196581197 | G9: 0.01607501674 | H9: 0.01870503597 | I9: 0.02631578947 | J9: 0.07631086142 | K9: 0.04035780058 | M9: Swimming pool | N9: 37000 | O9: 18000 | P9: 389000 | Q9: 122000 | R9: 19000 | S9: 17000 | T9: 32000 | U9: 8000 | V9: 125000 | W9: =SUM(N9:V9) -> 767000 | X9: Swimming pool | Y9: 27000 | Z9: 22000 | AA9: 380000 | AB9: 93000 | AC9: 21000 | AD9: 24000 | AE9: 26000 | AF9: 10000 | AG9: 163000 | AH9: 767000
A10: DVD player/Blu ray player | B10: 0.2169222033 | C10: 0.3453453453 | D10: 0.2375843572 | E10: 0.2378493317 | F10: 0.2518518519 | G10: 0.1848626926 | H10: 0.2661870504 | I10: 0.3131578947 | J10: 0.300093633 | K10: 0.2489871087 | M10: DVD player/Blu ray player | N10: 455000 | O10: 334000 | P10: 1694000 | Q10: 948000 | R10: 544000 | S10: 352000 | T10: 355000 | U10: 114000 | V10: 635000 | W10: 5430000 | X10: DVD player/Blu ray player | Y10: 382000 | Z10: 345000 | AA10: 1373000 | AB10: 783000 | AC10: 442000 | AD10: 276000 | AE10: 370000 | AF10: 119000 | AG10: 641000 | AH10: 4732000
A11: Pay TV (M-Net/DStv/StarSat) subscription | B11: 0.5343554798 | C11: 0.6116116116 | D11: 0.5751860183 | E11: 0.5434386391 | F11: 0.6797720798 | G11: 0.6731413262 | H11: 0.5309352518 | I11: 0.6447368421 | J11: 0.5603932584 | K11: 0.5810049987 | M11: Pay TV (M-Net/DStv/StarSat) subscription | N11: 984000 | O11: 585000 | P11: 3238000 | Q11: 1734000 | R11: 1137000 | S11: 968000 | T11: 687000 | U11: 237000 | V11: 1224000 | W11: 10793000 | X11: Pay TV (M-Net/DStv/StarSat) subscription | Y11: 941000 | Z11: 611000 | AA11: 3324000 | AB11: 1789000 | AC11: 1193000 | AD11: 1005000 | AE11: 738000 | AF11: 245000 | AG11: 1197000 | AH11: 11042000
A12: Air conditioner | B12: 0.02271436684 | C12: 0.05305305305 | D12: 0.06835092577 | E12: 0.08201701094 | F12: 0.06381766382 | G12: 0.03549899531 | H12: 0.03165467626 | I12: 0.08684210526 | J12: 0.125 | K12: 0.0665614312 | M12: Air conditioner | N12: 48000 | O12: 48000 | P12: 401000 | Q12: 358000 | R12: 107000 | S12: 60000 | T12: 54000 | U12: 36000 | V12: 255000 | W12: 1367000 | X12: Air conditioner | Y12: 40000 | Z12: 53000 | AA12: 395000 | AB12: 270000 | AC12: 112000 | AD12: 53000 | AE12: 44000 | AF12: 33000 | AG12: 267000 | AH12: 1265000
A13: Computer/Desktop/Laptop | B13: 0.1516183986 | C13: 0.2082082082 | D13: 0.3202976293 | E13: 0.1652490887 | F13: 0.1772079772 | G13: 0.2083054253 | H13: 0.1863309353 | I13: 0.2552631579 | J13: 0.4063670412 | K13: 0.2481452249 | M13: Computer/Desktop/Laptop | N13: 262000 | O13: 225000 | P13: 1880000 | Q13: 603000 | R13: 292000 | S13: 280000 | T13: 252000 | U13: 88000 | V13: 853000 | W13: 4735000 | X13: Computer/Desktop/Laptop | Y13: 267000 | Z13: 208000 | AA13: 1851000 | AB13: 544000 | AC13: 311000 | AD13: 311000 | AE13: 259000 | AF13: 97000 | AG13: 868000 | AH13: =SUM(Y13:AG13) -> 4716000
A14: Vacuum cleaner/floor polisher | B14: 0.06871095968 | C14: 0.0950950951 | D14: 0.1254542308 | E14: 0.0507290401 | F14: 0.02564102564 | G14: 0.04420629605 | H14: 0.04892086331 | I14: 0.08947368421 | J14: 0.279494382 | K14: 0.1008681926 | M14: Vacuum cleaner/floor polisher | N14: 142000 | O14: 111000 | P14: 670000 | Q14: 231000 | R14: 61000 | S14: 73000 | T14: 85000 | U14: 37000 | V14: 605000 | W14: 2015000 | X14: Vacuum cleaner/floor polisher | Y14: 121000 | Z14: 95000 | AA14: 725000 | AB14: 167000 | AC14: 45000 | AD14: 66000 | AE14: 68000 | AF14: 34000 | AG14: 597000 | AH14: 1917000
A15: Dish washing machine | B15: 0.02101078932 | C15: 0.03503503504 | D15: 0.08029070773 | E15: 0.04009720535 | F15: 0.01481481481 | G15: 0.02746148694 | H15: 0.02517985612 | I15: 0.03157894737 | J15: 0.1413857678 | K15: 0.05703762168 | M15: Dish washing machine | N15: 48000 | O15: 47000 | P15: 358000 | Q15: 156000 | R15: 46000 | S15: 42000 | T15: 42000 | U15: 14000 | V15: 311000 | W15: =SUM(N15:V15) -> 1064000 | X15: Dish washing machine | Y15: 37000 | Z15: 35000 | AA15: 464000 | AB15: 132000 | AC15: 26000 | AD15: 41000 | AE15: 35000 | AF15: 12000 | AG15: 302000 | AH15: 1084000
A16: Washing machine | B16: 0.2867688813 | C16: 0.3963963964 | D16: 0.4571725212 | E16: 0.2041312272 | F16: 0.3031339031 | G16: 0.3576691226 | H16: 0.4028776978 | I16: 0.5868421053 | J16: 0.643258427 | K16: 0.3914233097 | M16: Washing machine | N16: 529000 | O16: 419000 | P16: 2590000 | Q16: 664000 | R16: 530000 | S16: 552000 | T16: 538000 | U16: 217000 | V16: 1363000 | W16: 7401000 | X16: Washing machine | Y16: 505000 | Z16: 396000 | AA16: 2642000 | AB16: 672000 | AC16: 532000 | AD16: 534000 | AE16: 560000 | AF16: 223000 | AG16: 1374000 | AH16: 7439000
A17: Tumble dryer | B17: 0.02668938103 | C17: 0.06606606607 | D17: 0.09205744939 | E17: 0.05558930741 | F17: 0.03988603989 | G17: 0.05224380442 | H17: 0.0309352518 | I17: 0.02894736842 | J17: 0.1441947566 | K17: 0.07034990792 | M17: Tumble dryer | N17: 66000 | O17: 53000 | P17: 462000 | Q17: 176000 | R17: 112000 | S17: 71000 | T17: 50000 | U17: 16000 | V17: 371000 | W17: 1377000 | X17: Tumble dryer | Y17: 47000 | Z17: 66000 | AA17: 532000 | AB17: 183000 | AC17: 70000 | AD17: 78000 | AE17: 43000 | AF17: 11000 | AG17: 308000 | AH17: 1337000
A18: Deep freezer-free standing | B18: 0.1510505395 | C18: 0.2262262262 | D18: 0.1451808271 | E18: 0.2542527339 | F18: 0.3606837607 | G18: 0.2612190221 | H18: 0.2007194245 | I18: 0.3815789474 | J18: 0.3342696629 | K18: 0.2278347803 | M18: Deep freezer-free standing | N18: 252000 | O18: 232000 | P18: 837000 | Q18: 801000 | R18: 603000 | S18: 397000 | T18: 256000 | U18: 140000 | V18: 688000 | W18: 4207000 | X18: Deep freezer-free standing | Y18: 266000 | Z18: 226000 | AA18: 839000 | AB18: 837000 | AC18: 633000 | AD18: 390000 | AE18: 279000 | AF18: 145000 | AG18: 714000 | AH18: 4330000
A19: Refrigerator or combined fridge freezer | B19: 0.7825099375 | C19: 0.8288288288 | D19: 0.8240179962 | E19: 0.8201701094 | F19: 0.7196581197 | G19: 0.7655726725 | H19: 0.7589928058 | I19: 0.7973684211 | J19: 0.8843632959 | K19: 0.8062088924 | M19: Refrigerator or combined fridge freezer | N19: 1418000 | O19: 811000 | P19: 4618000 | Q19: 2781000 | R19: 1271000 | S19: 1149000 | T19: 999000 | U19: 297000 | V19: 1901000 | W19: 15244000 | X19: Refrigerator or combined fridge freezer | Y19: 1378000 | Z19: 828000 | AA19: 4762000 | AB19: 2700000 | AC19: 1263000 | AD19: 1143000 | AE19: 1055000 | AF19: 303000 | AG19: 1889000 | AH19: 15322000
A20: Electric stove | B20: 0.8716638274 | C20: 0.8908908909 | D20: 0.8743727288 | E20: 0.9067436209 | F20: 0.8792022792 | G20: 0.876758205 | H20: 0.8841726619 | I20: 0.8842105263 | J20: 0.8675093633 | K20: 0.8805051302 | M20: Electric stove | N20: 1508000 | O20: 874000 | P20: 4912000 | Q20: 2938000 | R20: 1475000 | S20: 1281000 | T20: 1160000 | U20: 325000 | V20: 1813000 | W20: 16288000 | X20: Electric stove | Y20: 1535000 | Z20: 890000 | AA20: 5053000 | AB20: 2985000 | AC20: 1543000 | AD20: 1309000 | AE20: 1229000 | AF20: 336000 | AG20: 1853000 | AH20: 16734000
A21: Gas stove | B21: 0.378762067 | C21: 0.2762762763 | D21: 0.3517909673 | E21: 0.2715674362 | F21: 0.1156695157 | G21: 0.1768251842 | H21: 0.2438848921 | I21: 0.3894736842 | J21: 0.4531835206 | K21: 0.3047619048 | M21: Microwave oven | N21: 1028000 | O21: 669000 | P21: 3662000 | Q21: 1815000 | R21: 714000 | S21: 763000 | T21: 684000 | U21: 223000 | V21: 1624000 | W21: 11181000 | X21: Gas stove | Y21: 667000 | Z21: 276000 | AA21: 2033000 | AB21: 894000 | AC21: 203000 | AD21: 264000 | AE21: 339000 | AF21: 148000 | AG21: 968000 | AH21: 5792000
A22: Solar hot water geyser | B22: 0.02101078932 | C22: 0.03403403403 | D22: 0.05277729711 | E22: 0.01518833536 | F22: 0.01310541311 | G22: 0.01004688547 | H22: 0.01726618705 | I22: 0.04473684211 | J22: 0.05290262172 | K22: 0.03251775848 | M22: Total householdsa | N22: 1742000 | O22: 975000 | P22: 5587000 | Q22: 3200000 | R22: 1729000 | S22: 1445000 | T22: 1349000 | U22: 371000 | V22: 2079000 | W22: =SUM(N22:V22) -> 18477000 | X22: Solar hot water geyser | Y22: 37000 | Z22: 34000 | AA22: 305000 | AB22: 50000 | AC22: 23000 | AD22: 15000 | AE22: 24000 | AF22: 17000 | AG22: 113000 | AH22: 618000
A23: Solar electric panel | B23: 0.01533219761 | C23: 0.01801801802 | D23: 0.04377920055 | E23: 0.008809234508 | F23: 0.007977207977 | G23: 0.01272605492 | H23: 0.02589928058 | I23: 0.03947368421 | J23: 0.0313670412 | K23: 0.02515127598 | X23: Solar electric panel | Y23: 27000 | Z23: 18000 | AA23: 253000 | AB23: 29000 | AC23: 14000 | AD23: 19000 | AE23: 36000 | AF23: 15000 | AG23: 67000 | AH23: 478000
A24: Geyser providing hot running water | B24: 0.1646791596 | C24: 0.2202202202 | D24: 0.382592144 | E24: 0.2162818955 | F24: 0.1515669516 | G24: 0.1788345613 | H24: 0.1798561151 | I24: 0.2263157895 | J24: 0.4779962547 | K24: 0.2800841884 | X24: Geyser providing hot running water | Y24: 290000 | Z24: 220000 | AA24: 2211000 | AB24: 712000 | AC24: 266000 | AD24: 267000 | AE24: 250000 | AF24: 86000 | AG24: 1021000 | AH24: 5323000
A25: Rain water tank | B25: 0.3503691085 | C25: 0.02602602603 | D25: 0.01574666897 | E25: 0.1139125152 | F25: 0.1623931624 | G25: 0.08238446082 | H25: 0.1035971223 | I25: 0.04736842105 | J25: 0.07724719101 | K25: 0.0969744804 | X25: Rain water tank | Y25: 617000 | Z25: 26000 | AA25: 91000 | AB25: 375000 | AC25: 285000 | AD25: 123000 | AE25: 144000 | AF25: 18000 | AG25: 165000 | AH25: 1843000
A26: Home security service | B26: 0.05621805792 | C26: 0.06506506507 | D26: 0.1903443502 | E26: 0.08596597813 | F26: 0.04273504274 | G26: 0.04085733423 | H26: 0.05323741007 | I26: 0.05263157895 | J26: 0.1652621723 | K26: 0.1120757695 | X26: Home security service | Y26: 99000 | Z26: 65000 | AA26: 1100000 | AB26: 283000 | AC26: 75000 | AD26: 61000 | AE26: 74000 | AF26: 20000 | AG26: 353000 | AH26: 2130000
A27: Microwave oven | B27: 0.5440090857 | C27: 0.6806806807 | D27: 0.6376535733 | E27: 0.5203523694 | F27: 0.3954415954 | G27: 0.5130609511 | H27: 0.5172661871 | I27: 0.5947368421 | J27: 0.7654494382 | K27: 0.5827940016 | X27: Microwave oven | Y27: 958000 | Z27: 680000 | AA27: 3685000 | AB27: 1713000 | AC27: 694000 | AD27: 766000 | AE27: 719000 | AF27: 226000 | AG27: 1635000 | AH27: 11076000
A28: Total householdsa | B28: 1 | C28: 1 | D28: 1 | E28: 1 | F28: 1 | G28: 1 | H28: 1 | I28: 1 | J28: 1 | K28: 1 | X28: Total householdsa | Y28: 1761000 | Z28: 999000 | AA28: 5779000 | AB28: 3292000 | AC28: 1755000 | AD28: 1493000 | AE28: 1390000 | AF28: 380000 | AG28: 2136000 | AH28: 19005000
B29: 1761000 | C29: 999000 | D29: 5779000 | E29: 3292000 | F29: 1755000 | G29: 1493000 | H29: 1390000 | I29: 380000 | J29: 2136000 | K29: 19005000 | Y29: 1761000
A37: Source: Stats SA, General Household Survey 2023 Addendum tables, Statistical release P0318, 23 May 2024, Table 8.5, p122
A38: a Figures do not add up vertically as households typically have more than one asset.

Sheet Motor vehicles

Sheet Registered vehicles.2003&2024
A2: Motor vehicles
A4: Registered vehiclesa by province, 2003/04 and 2024
B6: —2003/04— | D6: —2024b— | F6: Change: Number | G6: Change: Proportion
A7: Province | B7: Registered vehicles | C7: People per vehiclec | D7: Registered vehicles | E7: People per vehicle (2024)c
A8: Eastern Cape | B8: 513217 | C8: 13.81198791 | D8: 864045 | E8: =(I8/D8) -> 8.305389187 | F8: =(D8-B8) -> 350828 | G8: =(D8-B8)/B8 -> 0.6835860854 | I8: 7176230
A9: Free State | B9: 453974 | C9: 6.499625529 | D9: 648876 | E9: =(I9/D9) -> 4.691266128 | F9: =(D9-B9) -> 194902 | G9: =(D9-B9)/B9 -> 0.4293241463 | I9: 3044050
A10: Gauteng | B10: 2831350 | C10: 3.124919208 | D10: 5095612 | E10: 3.126577141 | F10: 2264262 | G10: 0.7997110919 | I10: 15931824
A11: KwaZulu-Natal | B11: 1031813 | C11: 9.367855416 | D11: 1785367 | E11: 6.896459944 | F11: 753554 | G11: 0.7303203197 | I11: 12312712
A12: Limpopo | B12: 332506 | C12: 16.57703019 | D12: 797743 | E12: 8.02588553 | F12: 465237 | G12: 1.399183774 | I12: 6402594
A13: Mpumalanga | B13: 451389 | C13: 7.187383831 | D13: 934471 | E13: 5.412326332 | F13: 483082 | G13: 1.070212167 | I13: 5057662
A14: North West | B14: 428676 | C14: 8.881927143 | D14: 669987 | E14: 6.202065115 | F14: 241311 | G14: 0.5629216471 | I14: 4155303
A15: Northern Cape | B15: 162893 | C15: 5.52110281 | D15: 295828 | E15: 4.641017754 | F15: 132935 | G15: 0.8160878614 | I15: 1372943
A16: Western Cape | B16: 1273360 | C16: 3.58947666 | D16: 2169186 | E16: 3.486371385 | F16: 895826 | G16: 0.703513539 | I16: 7562588
A17: South Africa | B17: 7479178 | C17: 6.228840522 | D17: =SUM(D8:D16) -> 13261115 | E17: =(I17/D17) -> 4.75193104 | F17: 5781937 | G17: 0.7730711851 | I17: 63015904
A18: — Motorised vehicles | B18: 6677242 | C18: 6.976923556 | D18: 12005200 | E18: 5.249050745 | F18: 5327958 | G18: 0.7979279469 | I18: 63015904
A19: — Towed vehicles and other | B19: 801936 | C19: 58.09267448 | D19: 1225915 | E19: 51.40315927 | F19: 423979 | G19: 0.5286943098 | I19: 63015904
A20: Source: Road Traffic Management Corporation (RTMC), Road Traffic and Fatal Crash Statistics 2003-2004, June 2005, pp4, 9,14; Electronic National Administration Traffic Information System (eNaTis), www.enatis.com, accessed 13 August 2024
A21: a Motorised, towed and other.
A22: b As at 30 June 2024.
A23: c CRA calculations.

Sheet Graph registered vehicles by pr
B1: 2003/04 | C1: Registered vehicles
A2: EC | B2: 513217 | C2: 864045
A3: FS | B3: 453974 | C3: 648876
A4: GAU | B4: 2831350 | C4: 5095612
A5: KZN | B5: 1031813 | C5: 1785367
A6: LIM | B6: 332506 | C6: 797743
A7: MPU | B7: 451389 | C7: 934471
A8: NW | B8: 428676 | C8: 669987
A9: NC | B9: 162893 | C9: 295828
A10: WC | B10: 1273360 | C10: 2169186
A11: SA | B11: 7479178 | C11: =SUM(C2:C10) -> 13261115

Sheet Motorised vehicles.1999-2024
A2: Motorised vehicles registereda , 1999-2024
A4: Year | B4: Motor cars | C4: Minibuses | D4: Buses | E4: Motor cycles | F4: Bakkies/ loading vans | G4: Trucks | H4: Other | I4: Total
A5: 1999 | B5: 3851048 | C5: 253201 | D5: 26127 | E5: 158328 | F5: 1263348 | G5: 228838 | H5: 211166 | I5: 5992056
A6: 2001 | B6: 3977255 | C6: 244598 | D6: 25820 | E6: 158958 | F6: 1332591 | G6: 225134 | H6: 195323 | I6: 6159679
A7: 2003 | B7: 4154593 | C7: 241938 | D7: 27221 | E7: 162871 | F7: 1406217 | G7: 231302 | H7: 193342 | I7: 6417484
A8: 2005 | B8: 4574972 | C8: 256205 | D8: 32308 | E8: 237556 | F8: 1564437 | G8: 259651 | H8: 203662 | I8: 7128791
A9: 2007b | B9: 4992401 | C9: 268660 | D9: 37348 | E9: 293164 | F9: 1732256 | G9: 285807 | H9: 213677 | I9: 7823313
A10: 2009 | B10: 5411093 | C10: 282941 | D10: 45217 | E10: 362400 | F10: 1946292 | G10: 321604 | H10: 230484 | I10: 8600031
A11: 2010b | B11: 5472090 | C11: 282793 | D11: 45858 | E11: 367162 | F11: 1965316 | G11: 321729 | H11: 231084 | I11: 8686032
A12: 2011b | B12: 5675488 | C12: 285858 | D12: 47799 | E12: 331271 | F12: 2025074 | G12: 326721 | H12: 234337 | I12: 8926548
A13: 2012b | B13: 5928532 | C13: 284536 | D13: 49679 | E13: 345179 | F13: 2101392 | G13: 335527 | H13: 221930 | I13: 9266775
A14: 2013b | B14: 6202323 | C14: 286458 | D14: 52325 | E14: 360068 | F14: 2179564 | G14: 344120 | H14: 224445 | I14: 9649303
A15: 2014b | B15: 6461553 | C15: 290520 | D15: 55090 | E15: 368285 | F15: 2254105 | G15: 352906 | H15: 228184 | I15: 10010643
A16: 2015b | B16: 6707175 | C16: 295139 | D16: 57538 | E16: 368529 | F16: 2329710 | G16: 361895 | H16: 230849 | I16: 10350835
A17: 2016b | B17: 6905939 | C17: 300876 | D17: 59843 | E17: 364960 | F17: 2397369 | G17: 367975 | H17: 272448 | I17: 10669410
A18: 2017c | B18: 7140959 | C18: 314988 | D18: 62900 | E18: 352549 | F18: 2489364 | G18: 372183 | H18: 234625 | I18: 10967568
A19: 2018d | B19: 7270100 | C19: 323378 | D19: 63919 | E19: 348611 | F19: 2533184 | G19: 374491 | H19: 234955 | I19: 11148638
A20: 2019e | B20: 7424649 | C20: 335392 | D20: 64808 | E20: 345513 | F20: 2589676 | G20: 378254 | H20: 235181 | I20: 11373473
A21: 2020f | B21: 7448021 | C21: 341252 | D21: 65159 | E21: 338871 | F21: 2603099 | G21: 377412 | H21: 233348 | I21: 11447162
A22: 2021g | B22: 7656531 | C22: 349399 | D22: 64566 | E22: 347658 | F22: 2673889 | G22: 388938 | H22: 237541 | I22: 11718522
A23: 2022h | B23: 7826452 | C23: 356485 | D23: 65329 | E23: 356830 | F23: 2713384 | G23: 395972 | H23: 242013 | I23: =SUM(B23:H23) -> 11956465
A24: 2023i | B24: 7770146 | C24: 352636 | D24: 64679 | E24: 349356 | F24: 2686547 | G24: 389012 | H24: 238223 | I24: =SUM(B24:H24) -> 11850599
A25: 2024j | B25: 7877714 | C25: 356429 | D25: 65184 | E25: 352972 | F25: 2716667 | G25: 396277 | H25: 239957 | I25: =SUM(B25:H25) -> 12005200
A26: 2023-24 | B26: =(B25-B24)/B24 -> 0.01384375532 | C26: =(C25-C24)/C24 -> 0.0107561338 | D26: 0.007807789236 | E26: 0.01035047344 | F26: 0.01121141748 | G26: 0.01867551644 | H26: 0.007278894145 | I26: 0.01304583844
A27: 1999-2024 | B27: =(B25-B5)/B5 -> 1.045602652 | C27: =(C25-C5)/C5 -> 0.4076919127 | D27: 1.494890343 | E27: 1.229371937 | F27: 1.150371077 | G27: 0.7316922889 | H27: 0.1363429719 | I27: 1.003519326
A28: People per vehicle 2024 | B28: =(B29/B25) -> 7.99926273 | C28: =(C29/C25) -> 176.7979149 | D28: 966.7388316 | E28: 178.5294698 | F28: 23.19603544 | G28: 159.0198371 | H28: 262.6133182 | I28: 5.249050745
B29: 63015904 | C29: 63015904 | D29: 63015904 | E29: 63015904 | F29: 63015904 | G29: 63015904 | H29: 63015904 | I29: 63015904
A30: Source: RTMC, Road Traffic Report-March 2008, April 2008, pp10-11; Road Traffic Report for the Calendar Year 2009, 2010, p9; Road Traffic Report 31 March 2011, August 2011, p71; eNaTis, www.enatis.com, accessed 13 August 2024
A31: a Figures as at year-end (December).
A32: b Figures for 2007, 2010, 2011, 2012, 2013, 2014, 2015 and 2016 are for March financial year ends.
A33: c As at 30 September 2017.
A34: d As at 30 June 2018.
A35: e As at 30 June 2019.
A36: f As at 31 May 2020.
A37: g As at 31 October 2021.
A38: h As at 30 September 2022.
A39: i As at 30 June 2023.
A40: j As at 30 June 2024.

Sheet Financial assets and services

Sheet Saving+credit

Sheet Households that have fallen beh
C2: Saving and credit
B4: Households that have fallen behind bills and card paymentsa, 2021-24
C6: Category | D6: 2021 | E6: 2022 | F6: 2023 | G6: 2024 | H6: Change 2021-24
C7: Fallen behind on store card payments | D7: 0.28 | E7: 0.25 | F7: 0.25 | G7: 0.23 | H7: =(G7-D7)/D7 -> -0.1785714286
C8: Fallen behind on any household bills | D8: 0.34 | E8: 0.35 | F8: 0.31 | G8: 0.3 | H8: =(G8-D8)/D8 -> -0.1176470588
C9: Fallen behind on credit card payments | D9: 0.27 | E9: 0.26 | F9: 0.25 | G9: 0.23 | H9: -0.1481481481
C10: Fallen behind on rent or home loan payments | D10: 0.19 | E10: 0.18 | F10: 0.18 | G10: 0.15 | H10: -0.2105263158
C11: Source: Old Mutual, Savings and Investment Monitor 2024, July 2024, p27
B12: a The annual monitor is a survey of 1 508 working people in South Africa’s major metropolitan areas. It examines levels of savings and investment, as well as people’s attitudes to their finances in general. Respondents were asked about household rather than personal income.

Sheet Credit granted by provider
A2: Credit granteda by type of credit provider, 2014-24
B4: —Rbn— | H4: —Proportion—
A5: Credit provider | B5: 2014 | C5: 2019 | D5: 2020 | E5: 2022 | F5: 2023 | G5: 2024b | H5: 2014 | I5: 2019 | J5: 2020 | K5: 2022 | L5: 2023 | M5: 2024b
A6: Banks | B6: 89.1 | C6: 115.9 | D6: 128 | E6: 132.6 | F6: 116 | G6: 105.3 | H6: =B6/Total333 -> 0.7576530612 | I6: =C6/Total4444 -> 0.7971114168 | J6: =(D6/Total144) -> 0.829015544 | K6: =(E6/Total1636) -> 0.8105134474 | L6: =(F6/Total1418) -> 0.7832545577 | M6: =(G6/G10) -> 0.7947169811
A7: Non-bank vehicle financiers | B7: 10.5 | C7: 11.9 | D7: 11.9 | E7: 12.5 | F7: 11.3 | G7: 9.1 | H7: =B7/Total333 -> 0.08928571429 | I7: =C7/Total4444 -> 0.0818431912 | J7: =(D7/Total144) -> 0.07707253886 | K7: =(E7/Total1636) -> 0.07640586797 | L7: =(F7/Total1418) -> 0.07629979743 | M7: =(G7/G10) -> 0.06867924528
A8: Retailers | B8: 5.6 | C8: 6.2 | D8: 4.1 | E8: 6.9 | F8: 6.7 | G8: 8.6 | H8: =B8/Total333 -> 0.04761904762 | I8: =C8/Total4444 -> 0.04264099037 | J8: =(D8/Total144) -> 0.02655440415 | K8: =(E8/Total1636) -> 0.04217603912 | L8: =(F8/Total1418) -> 0.0452397029 | M8: =(G8/G10) -> 0.06490566038
A9: Other credit providers | B9: 12.4 | C9: 11.4 | D9: 10.4 | E9: 11.6 | F9: 14.1 | G9: 9.5 | H9: =B9/Total333 -> 0.1054421769 | I9: =C9/Total4444 -> 0.07840440165 | J9: =(D9/Total144) -> 0.06735751295 | K9: =(E9/Total1636) -> 0.07090464548 | L9: =(F9/Total1418) -> 0.09520594193 | M9: =(G9/G10) -> 0.07169811321
A10: Total | B10: 117.6 | C10: =SUM(C6:C9) -> 145.4 | D10: 154.4 | E10: 163.6 | F10: =SUM(F6:F9) -> 148.1 | G10: =SUM(G6:G9) -> 132.5 | H10: =B10/Total333 -> 1 | I10: =C10/Total4444 -> 1 | J10: =SUM(J6:J9) -> 1 | K10: 1 | L10: 1 | M10: =SUM(M6:M9) -> 1
A11: Source: National Credit Regulator (NCR), Consumer Credit Market Report, March 2024, p4
A12: a Fourth quarter figures.
A13: b First quarter figures.

Sheet HH saving on educ.10-23
C3: Households with an education policy/saving for educationa, 2015-23
C5: Year | D5: Proportion
C6: 2015 | D6: 0.36
C7: 2016 | D7: 0.31
C8: 2017 | D8: 0.32
C9: 2018 | D9: 0.3
C10: 2019 | D10: 0.28
C11: 2020 | D11: 0.26
C12: 2021 | D12: 0.23
C13: 2022 | D13: 0.26
C14: 2023 | D14: 0.24
C15: 2015-23 | D15: =(D14-D6)/D6 -> -0.3333333333
C16: Source: Old Mutual, Savings and Investment Monitor 2023, July 2023, p37
C17: a The annual monitor is a survey of 1 518 working people in South Africa’s major metropolitan areas. It examines levels of savings and investment, as well as people’s attitudes to their finances in general. Respondents were asked about household rather than personal income.

Sheet Households that use informal sa
A2: Householdsab that use informal savings, 2020-23
A4: Informal savings | B4: 2020 | C4: 2021 | D4: 2022 | E4: 2023 | F4: Change 2022-23 | G4: Change 2020-23
A5: Stokvelsc | B5: 0.46 | C5: 0.54 | D5: 0.53 | E5: 0.48 | F5: =(E5-D5)/D5 -> -0.09433962264 | G5: =(E5-B5)/B5 -> 0.04347826087
A6: Burial societies | B6: 0.5 | C6: 0.56 | D6: 0.55 | E6: 0.51 | F6: =(E6-D6)/D6 -> -0.07272727273 | G6: =(E6-B6)/B6 -> 0.02
A7: Grocery schemes | B7: 0.31 | C7: 0.31 | D7: 0.31 | E7: 0.28 | F7: -0.09677419355 | G7: -0.09677419355
A8: Source: Old Mutual, Savings and Investment Monitor 2023, July 2023, p42
A10: a The annual monitor is a survey of 1 518 working people in South Africa’s major metropolitan areas. It examines levels of savings and investment, as well as people’s attitudes to their finances in general. Respondents were asked about household rather than personal income.
A11: b Refers to Black households only.
A12: c A rotating savings and credit association. Typically made up of 5 to 20 people who contribute an agreed periodic amount to a central collective savings vehicle. Each member gets to receive a lump sum of the combined contributions at least once during the lifetime of the stokvel.

Sheet Credit

Sheet Total credit granted by provinc
A2: Total creditab granted by province, 2007-24
M4: Population by provincee | N4: Credit per capitaf
B5: 2007 | C5: 2012 | D5: 2014 | E5: 2016 | F5: 2018 | G5: 2019 | H5: 2020 | I5: 2022 | J5: 2023 | K5: 2024d | L5: Change 2007-24
A6: Province | B6: —Rbn—
A7: Eastern Cape | B7: 6.1 | C7: 7.8 | D7: 6.7 | E7: 7.4 | F7: 8.6 | G7: 8.8 | H7: 8.8 | I7: 9.6 | J7: 9 | K7: 7.9 | L7: =(K7-B7)/B7 -> 0.2950819672 | M7: 7176230 | N7: 1096.3
A8: Free State | B8: 3.9 | C8: 5.2 | D8: 4.8 | E8: 5.3 | F8: 5.9 | G8: 5.5 | H8: 5.6 | I8: 6 | J8: 5.6 | K8: 5 | L8: =(K8-B8)/B8 -> 0.2820512821 | M8: 3044050 | N8: 1652
A9: Gauteng | B9: 49.3 | C9: 54.8 | D9: 55.5 | E9: 52.6 | F9: 61.6 | G9: 62.6 | H9: 69.9 | I9: 69.8 | J9: 61.8 | K9: 54.5 | L9: 0.1054766734 | M9: 15931824 | N9: 3423
A10: KwaZulu-Natal | B10: 12.4 | C10: 14.9 | D10: 14.4 | E10: 16.8 | F10: 20.1 | G10: 20.2 | H10: 20.1 | I10: 21.5 | J10: 19.5 | K10: 17.7 | L10: 0.4274193548 | M10: 12312712 | N10: 1438
A11: Limpopo | B11: 3.2 | C11: 5 | D11: 4.1 | E11: 5 | F11: 5.9 | G11: 5.8 | H11: 5.8 | I11: 6.4 | J11: 6.2 | K11: 5.3 | L11: 0.65625 | M11: 6402594 | N11: 834
A12: Mpumalanga | B12: 5 | C12: 7.5 | D12: 7.3 | E12: 8.4 | F12: 9.7 | G12: 9.2 | H12: 9 | I12: 10.4 | J12: 9.5 | K12: 8.6 | L12: 0.72 | M12: 5057662 | N12: 1691
A13: North West | B13: 3.9 | C13: 5 | D13: 4.6 | E13: 4.7 | F13: 4.9 | G13: 4.4 | H13: 5.5 | I13: 6.5 | J13: 5.6 | K13: 4.7 | L13: 0.2051282051 | M13: 4155303 | N13: 1130
A14: Northern Cape | B14: 1.6 | C14: 2.7 | D14: 2.2 | E14: 2.4 | F14: 3 | G14: 5.4 | H14: 2.6 | I14: 2.9 | J14: 2.9 | K14: 2.5 | L14: 0.5625 | M14: 1372943 | N14: 1830
A15: Western Cape | B15: 15.7 | C15: 16 | D15: 17 | E15: 20.3 | F15: 24.1 | G15: 23.9 | H15: 26 | I15: 29 | J15: 26.7 | K15: 24.8 | L15: 0.5796178344 | M15: 7562588 | N15: 3275
A16: South Africac | B16: 101.3 | C16: 118.9 | D16: 117.6 | E16: 123.5 | F16: 144.7 | G16: 145.4 | H16: 154.4 | I16: 163.6 | J16: 142.3 | K16: 132.5 | L16: =(K16-B16)/B16 -> 0.3079960513 | M16: 63015904 | N16: 2103
A17: Source: NCR, Consumer Credit Market Report, March 2024, p23
A18: a The total credit includes mortgage agreements, secured credit, unsecured credit, credit facilities, and short-term credit transactions.
A19: b Fourth quarter figures.
A20: c Figures may not add up vertically, owing to rounding.
A21: d First quarter figures.
A22: e Mid-year population estimates from Stats SA.
A23: f CRA calculations.

Sheet Secured credit granted income
C2: Secured credit granteda by monthly income, 2015 and 2024
C4: Income group | D4: 2015b | E4: 2024c | F4: Change
C5: <R10 000 | D5: 0.433 | E5: 0.34 | F5: =(E5-D5)/D5 -> -0.2147806005
C6: R10 100-R15 000 | D6: 0.12 | E6: 0.076 | F6: =(E6-D6)/D6 -> -0.3666666667
C7: >R15 000 | D7: 0.447 | E7: 0.584 | F7: 0.3064876957
C8: Source: NCR, Consumer Credit Market Report, March 2024, p10
C10: a Credit transactions that do not fall within the other named categories in the National Credit Act of 2005. This category includes pension-backed loans, insurance-backed loans, retail furniture accounts, and motor vehicle accounts.
C11: b Fourth quarter figures.
C12: c First quarter figures.

Sheet Secured credit granted by type
B2: Secured credit granted by type of security, 2009 and 2024
C4: —Rbn— | E4: —Proportion—
B5: Agreement | C5: 2009a | D5: 2024b | E5: 2009a | F5: 2024b
B6: Vehicle | C6: 129867 | D6: 109960 | E6: =(C6/Total458526) -> 0.2832271234 | F6: =(D6/TOtal233739) -> 0.4932490019
B7: Retirement benefits | C7: 9695 | D7: 2391 | E7: 0.02114383917 | F7: =(D7/TOtal233739) -> 0.01072533979
B8: Insurance policy | C8: 4004 | D8: 3147 | E8: 0.008732329246 | F8: =(D8/TOtal233739) -> 0.01411653882
B9: Furniture and other durables | C9: 308592 | D9: 103321 | E9: 0.673008728 | F9: =(D9/TOtal233739) -> 0.4634683533
B10: Other security | C10: 6368 | D10: 4111 | E10: 0.01388798018 | F10: =(D10/TOtal233739) -> 0.01844076616
B11: Total | C11: 458526 | D11: =SUM(D6:D10) -> 222930 | E11: 1 | F11: =SUM(F6:F10) -> 1
B12: Source: NCR, Consumer Credit Market Report, December 2009, p9; Consumer Credit Market Report, March 2024, p9
B13: a Fourth quarter figures.
B14: b First quarter figures.

Sheet Unsecured credit granted by mon
C2: Unsecured credita granted by gross monthly income level, 2009 and 2024
C4: Income group | D4: 2009b | E4: 2024c | F4: 2009b | G4: 2024c
C5: <R10 000 | D5: 595294 | E5: 155578 | F5: 0.724 | G5: 0.271
C6: R10 100-R15 000 | D6: 117437 | E6: 75385 | F6: 0.143 | G6: 0.131
C7: >R15 000 | D7: 109977 | E7: 343279 | F7: 0.134 | G7: 0.598
C8: Source: NCR, Consumer Credit Market Report, March 2024, p15
C9: a The loan or credit is not secured by any pledge or personal security.
C10: b Fourth quarter figures.
C11: c First quarter figures.

Sheet Total consumer credit granted
B2: Total consumer credit granted, 2009 and 2024
C4: —Rbn— | E4: Proportion
B5: Type of credit | C5: 2009a | D5: 2024b | E5: 2009a | F5: 2024b
B6: Mortgagesc | C6: 21.1 | D6: 38.4 | E6: =(C6/Total633) -> 0.3333333333 | F6: =(Total413/Total1357) -> 0.2898113208
B7: Secured creditd | C7: 23.7 | D7: 44.2 | E7: =(C7/Total633) -> 0.3744075829 | F7: =(D7/Total1357) -> 0.3335849057
B8: Credit facilitiese | C8: 6.9 | D8: 22.6 | E8: =(C8/Total633) -> 0.1090047393 | F8: =(D8/Total1357) -> 0.1705660377
B9: Unsecured creditf | C9: 10.5 | D9: 22.6 | E9: =(C9/Total633) -> 0.1658767773 | F9: 0.1705660377
B10: Short-term creditg | C10: 1.1 | D10: 3 | E10: =(C10/Total633) -> 0.01737756714 | F10: 0.02264150943
B11: Developmental credith | C11: —i | D11: 1.9 | E11: —i | F11: 0.01433962264
B12: Total | C12: 63.3 | D12: 132.5 | E12: =(C12/Total633) -> 1 | F12: 1
B13: Source: NCR, Consumer Credit Market Report, December 2009, p4; Consumer Credit Market Report, March 2024, p4
B14: a Quarter ended December 2009.
B15: b Quarter ended March 2024.
B16: c An agreement that is secured by a pledge of immovable property.
B17: d Credit transactions that do not fall within the other named categories in the National Credit Act of 2005. This category includes pension-backed loans, insurance-backed loans, retail furniture accounts, and motor vehicle accounts.
B18: e The value reported for “credit facility” includes both new credit facilities and limit increases for existing credit facility agreements. These values represent the potential exposure of the credit providers and not the actual usage/consumption by consumers.
B19: f The loan or credit is not secured by any pledge or personal security.
B20: g This includes amounts not exceeding R8 000 and repayable within 6 months.
B21: h Development credit includes loans for education, a small business, an acquisition, rehabilitation or building or expansion of low income housing.
B22: i Information not available.

Sheet Total outstanding consumer cred
B2: Total outstanding consumer credit, 2009 and 2024
C4: —Rbn— | E4: Proportion
B5: Type of credit | C5: 2009a | D5: 2024b | E5: 2009a | F5: 2024b
B6: Mortgagesc | C6: 734.2 | D6: 1233.6 | E6: 0.653 | F6: =D6/Total16 -> 0.5203087435
B7: Secured creditd | C7: 214.2 | D7: 517.3 | E7: 0.19 | F7: 0.2181871863
B8: Credit facilitiese | C8: 127 | D8: 333.4 | E8: 0.113 | F8: 0.1406217048
B9: Unsecured creditf | C9: 49.2 | D9: 218.2 | E9: 0.044 | F9: 0.09203256147
B10: Short-term creditg | C10: 0.6 | D10: 2.8 | E10: 0.001 | F10: 0.001180986123
B11: Developmental credith | C11: —i | D11: 65.6 | E11: —i | F11: 0.02766881775
B12: Total | C12: 1125.1 | D12: =SUM(D6:D11) -> 2370.9 | E12: 1 | F12: 1
B13: Source: NCR, Consumer Credit Market Report, March 2024, p5
B14: a Quarter ended June 2009.
B15: b Quarter ended March 2024.
B16: c An agreement that is secured by a pledge of immovable property.
B17: d Credit transactions that do not fall within the other named categories in the National Credit Act of 2005. This category includes pension-backed loans, insurance-backed loans, retail furniture accounts, and motor vehicle accounts.
B18: e The value reported for “credit facility” includes both new credit facilities and limit increases for existing credit facility agreements. These values represent the potential exposure of the credit providers and not the actual usage/consumption by consumers.
B19: f The loan or credit is not secured by any pledge or personal security.
B20: g This includes amounts not exceeding R8 000 and repayable within 6 months.
B21: h Development credit includes loans for education, a small business, an acquisition, rehabilitation or building or expansion of low income housing.
B22: I Information not available.

Sheet Number of mortgage agreements b
B2: Mortgage agreements by size, 2009 and 2024
C4: —Rbn— | E4: Proportion
B5: Agreement | C5: 2009a | D5: 2024b | E5: 2009a | F5: 2024b
B6: R0-R50 000 | C6: 2601 | D6: 161 | E6: =(C6/Total37130) -> 0.07005117156 | F6: =(D6/Total41602) -> 0.005599220978
B7: R51 000-R100 000 | C7: 3623 | D7: 368 | E7: 0.09757608403 | F7: 0.01279821938
B8: R101 000-R150 000 | C8: 2436 | D8: 447 | E8: 0.06560732561 | F8: 0.01554566321
B9: R151 000-R350 000 | C9: 8715 | D9: 2305 | E9: 0.2347158632 | F9: 0.08016275996
B10: R351 000-R700 000 | C10: 10658 | D10: 6046 | E10: 0.2870455158 | F10: 0.2102663977
B11: R700 000+ | C11: 9097 | D11: 19427 | E11: 0.2450040399 | F11: 0.6756277387
B12: Total | C12: 37130 | D12: =SUM(D6:D11) -> 28754 | E12: 1 | F12: 1
B13: Source: NCR, Consumer Credit Market Report, December 2009, p6; Consumer Credit Market Report, March 2024, p7
B14: a Quarter ended December 2009.
B15: b Quarter ended March 2024.

Sheet Mortgages granted by income
B2: Mortgages granted by gross monthly income, 2009 and 2024
C4: —Rbn— | E4: Proportion
B5: Income level | C5: 2009a | D5: 2024b | E5: 2009a | F5: 2024b
B6: R0-R10 000 | C6: 2695 | D6: 107 | E6: =(C6/Total36790) -> 0.07325360152 | F6: =(D6/Total41598) -> 0.003721221395
B7: R10 100-R15 000 | C7: 4710 | D7: 243 | E7: =(C7/Total36790) -> 0.1280239195 | F7: =(D7/Total41598) -> 0.008450998122
B8: R15 000+ | C8: 29385 | D8: 28404 | E8: =(C8/Total36790) -> 0.7987224789 | F8: =(D8/Total41598) -> 0.9878277805
B9: Total | C9: 36790 | D9: =SUM(D6:D8) -> 28754 | E9: =(C9/Total36790) -> 1 | F9: =(D9/Total41598) -> 1
B10: Source: NCR, Consumer Credit Market Report, December 2009, p7; Consumer Credit Market Report, March 2024, p7
B11: a Quarter ended December 2009.
B12: b Quarter ended March 2024.

Sheet Personal loans.13-24
A2: Personal loansa, 2015-24
A4: Source of loan | B4: 2015 | C4: 2018 | D4: 2019 | E4: 2020 | F4: 2022 | G4: 2023 | H4: 2024 | I4: Change 2015-24
A5: A financial institution | B5: 0.17 | C5: 0.15 | D5: 0.21 | E5: 0.43 | F5: 0.42 | G5: 0.45 | H5: 0.43 | I5: =(H5-B5)/B5 -> 1.529411765
A6: A friend or relative | B6: 0.07 | C6: 0.09 | D6: 0.13 | E6: 0.19 | F6: 0.17 | G6: 0.17 | H6: 0.15 | I6: =(H6-B6)/B6 -> 1.142857143
A7: A micro lender | B7: 0.03 | C7: 0.04 | D7: 0.05 | E7: 0.12 | F7: 0.1 | G7: 0.13 | H7: 0.13 | I7: 3.333333333
A8: Source: Old Mutual, Savings and Investment Monitor 2023, March 2024, p30
A9: a The annual monitor is a survey of 1 518 working people in South Africa’s major metropolitan areas. It examines levels of savings and investment, as well as people’s attitudes to their finances in general. Respondents were asked about household rather than personal income.

Sheet Top reasons for borrowing
B2: Top reasons for borrowing money, 2023
B4: Reasons | C4: Proportion
B5: Food | C5: 0.4
B6: Clothes | C6: 0.12
B7: Bills | C7: 0.1
B8: Education | C8: 0.09
B9: Building/renovating house | C9: 0.07
B10: Source: Finmark Trust, FinScope Consumer South Africa 2023 Survey Launch, 23 April 2024, p27
B11: Finmark Trust used a demographically representative sample of 5 600 respondents.

Sheet INCOMES.

Sheet Household sources of income#
A2: INCOMES
A4: Income sources
A6: Household sources of incomea by race (actual numbers), 2010 and 2023
B8: —Black— | D8: —Coloured— | F8: —Indian/Asian— | H8: —White— | J8: —Total—
A9: Income source | B9: 2010 | C9: 2023 | D9: 2010 | E9: 2023 | F9: 2010 | G9: 2023 | H9: 2010 | I9: 2023 | J9: 2010 | K9: 2023
A10: Salaries/wages/commission | B10: 6602000 | C10: 9558000 | D10: 904000 | E10: 927000 | F10: 266000 | G10: 311000 | H10: 1146000 | I10: 1029000 | J10: 8918000 | K10: 11826000
A11: Income from a business | B11: 1284000 | C11: 2352000 | D11: 95000 | E11: 124000 | F11: 60000 | G11: 140000 | H11: 379000 | I11: 461000 | J11: 1818000 | K11: =(C11+E11+G11+I11) -> 3077000
A12: Remittances | B12: 2105000 | C12: 2294000 | D12: 111000 | E12: 72000 | F12: 32000 | G12: 29000 | H12: 98000 | I12: 89000 | J12: 2346000 | K12: 2485000
A13: Pensions | B13: 176000 | C13: 337000 | D13: 35000 | E13: 66000 | F13: 15000 | G13: 38000 | H13: 232000 | I13: 293000 | J13: 458000 | K13: =(C13+E13+G13+I13) -> 734000
A14: Grants | B14: 5600000 | C14: 8476000 | D14: 543000 | E14: 742000 | F14: 119000 | G14: 128000 | H14: 166000 | I14: 253000 | J14: 6428000 | K14: 9600000
A15: Sales of farm products and services | B15: 160000 | C15: 35000 | D15: 4000 | E15: —c | F15: —c | G15: —c | H15: 52000 | I15: 19000 | J15: 216000 | K15: 54000
A16: Other incomeb | B16: 191000 | C16: 343000 | D16: 27000 | E16: 23000 | F16: 12000 | G16: 5000 | H16: 131000 | I16: 81000 | J16: 362000 | K16: =(C16+E16+G16+I16) -> 452000
A17: No income | B17: 103000 | C17: 251000 | D17: 6000 | E17: 11000 | F17: —c | G17: —c | H17: —c | I17: 24000 | J17: 113000 | K17: 290000
A18: Total households | B18: 11126000 | C18: 15738000 | D18: 1143000 | E18: 1277000 | F18: 359000 | G18: 444000 | H18: 1676000 | I18: 1546000 | J18: 14304000 | K18: 19005000
A19: Source: Stats SA, General Household Survey 2010, Statistical release P0318, 3 August 2011, Table 17.2, p139; General Household Survey 2023 Addendum tables, Statistical release P0318, 23 May 2024, Table 16.2, p155
A20: a More than one source of income is possible. The figures therefore do not add up vertically.
A21: b For example, income from rentals or interest.
A22: c Figures too small to provide reliable estimates.

Sheet Household sources of income %
A2: Household sources of incomea by race (proportionsb), 2010 and 2023
B4: —Black— | D4: —Coloured— | F4: —Indian/Asian— | H4: —White— | J4: —Total— | N4: —Black— | P4: —Coloured— | R4: —Indian/Asian— | T4: —White— | V4: —Total—
A5: Income source | B5: 2010 | C5: 2023 | D5: 2010 | E5: 2023 | F5: 2010 | G5: 2023 | H5: 2010 | I5: 2023 | J5: 2010 | K5: 2023 | M5: Income source | N5: 2010 | O5: 2022 | P5: 2010 | Q5: 2022 | R5: 2010 | S5: 2022 | T5: 2010 | U5: 2022 | V5: 2010 | W5: 2022
A6: Salaries/wages/commission | B6: 0.593 | C6: =(C21/total157345) -> 0.6073198628 | D6: 0.791 | E6: =(E21/total125678) -> 0.7259201253 | F6: 0.741 | G6: =(G21/total4444) -> 0.7004504505 | H6: 0.684 | I6: =(I21/total1546790) -> 0.6655886158 | J6: 0.623 | K6: =(K21/total1945609) -> 0.6222573007 | M6: Salaries/wages/commission | N6: 6602000 | O6: 8388000 | P6: 904000 | Q6: 910000 | R6: 266000 | S6: 295000 | T6: 1146000 | U6: 995000 | V6: 8918000 | W6: 11038000
A7: Income from a business | B7: 0.115 | C7: 0.1494471979 | D7: 0.083 | E7: =(E22/total125678) -> 0.09710258418 | F7: 0.167 | G7: =(G22/total4444) -> 0.3153153153 | H7: 0.226 | I7: 0.2981888745 | J7: 0.127 | K7: 0.1619047619 | M7: Income from a business | N7: 1284000 | O7: 2278000 | P7: 95000 | Q7: 121000 | R7: 60000 | S7: 125000 | T7: 379000 | U7: 426000 | V7: 1818000 | W7: =(O7+Q7+S7+U7) -> 2950000
A8: Remittances | B8: 0.189 | C8: 0.1457618503 | D8: 0.097 | E8: =(E23/total125678) -> 0.05638214565 | F8: 0.089 | G8: =(G23/total4444) -> 0.06531531532 | H8: 0.058 | I8: 0.05756791721 | J8: 0.164 | K8: 0.1307550645 | M8: Remittances | N8: 2105000 | O8: 2335000 | P8: 111000 | Q8: 92000 | R8: 32000 | S8: 34000 | T8: 98000 | U8: 93000 | V8: 2346000 | W8: 2555000
A9: Pensions | B9: 0.016 | C9: 0.02141314017 | D9: 0.031 | E9: =(E24/total125678) -> 0.05168363352 | F9: 0.042 | G9: =(G24/total4444) -> 0.08558558559 | H9: 0.138 | I9: 0.1895213454 | J9: 0.032 | K9: 0.03862141542 | M9: Pensions | N9: 176000 | O9: 303000 | P9: 35000 | Q9: 59000 | R9: 15000 | S9: 32000 | T9: 232000 | U9: 328000 | V9: 458000 | W9: =(O9+Q9+S9+U9) -> 722000
A10: Grants | B10: 0.503 | C10: 0.5385690685 | D10: 0.475 | E10: =(E25/total125678) -> 0.5810493344 | F10: 0.331 | G10: =(G25/total4444) -> 0.2882882883 | H10: 0.099 | I10: 0.1636481242 | J10: 0.449 | K10: 0.5051302289 | M10: Grants | N10: 5600000 | O10: 8199000 | P10: 543000 | Q10: 711000 | R10: 119000 | S10: 140000 | T10: 166000 | U10: 225000 | V10: 6428000 | W10: 9275000
A11: Sales of farm products and services | B11: 0.014 | C11: 0.002223916635 | D11: 0.003 | E11: —d | F11: 0 | G11: —d | H11: 0.031 | I11: 0.01228978008 | J11: 0.015 | K11: 0.002841357537 | M11: Sales of farm products and services | N11: 160000 | O11: 30000 | P11: 4000 | Q11: N/A | R11: –c | S11: N/A | T11: 52000 | U11: 12000 | V11: 216000 | W11: 44000
A12: Other incomec | B12: 0.017 | C12: 0.02179438302 | D12: 0.024 | E12: =(E27/total125678) -> 0.01801096319 | F12: 0.033 | G12: =(G27/total4444) -> 0.01126126126 | H12: 0.078 | I12: 0.05239327296 | J12: 0.025 | K12: 0.02378321494 | M12: Other incomeb | N12: 191000 | O12: 381000 | P12: 27000 | Q12: 31000 | R12: 12000 | S12: 35000 | T12: 131000 | U12: 122000 | V12: 362000 | W12: =(O12+Q12+S12+U12) -> 569000
A13: No income | B13: 0.009 | C13: 0.0159486593 | D13: 0.005 | E13: =(E28/total125678) -> 0.008613938919 | F13: —d | G13: —d | H13: —d | I13: 0.01552393273 | J13: 0.008 | K13: 0.01525914233 | M13: No income | N13: 103000 | O13: 301000 | P13: 6000 | Q13: 10000 | R13: –c | S13: N/A | T13: –c | U13: 22000 | V13: 113000 | W13: 336000
A14: Source: Stats SA, General Household Survey 2010, Statistical release P0318, 3 August 2011, Table 17.2, p139; General Household Survey 2023 Addendum tables, Statistical release P0318, 23 May 2024, Table 16.2, p155 | M14: Total households | N14: 11126000 | O14: 15277000 | P14: 1143000 | Q14: 1258000 | R14: 359000 | S14: 436000 | T14: 1676000 | U14: 1556000 | V14: 14304000 | W14: 18477000
A15: a More than one source of income is possible. The figures therefore do not add up vertically.
A16: b CRA calculations.
A17: c For example, income from rentals or interest.
A18: d Figures too small to provide reliable estimates.
B19: —Black— | D19: —Coloured— | F19: —Indian/Asian— | H19: —White— | J19: —Total—
A20: Income source | B20: 2010 | C20: 2023 | D20: 2010 | E20: 2023 | F20: 2010 | G20: 2023 | H20: 2010 | I20: 2023 | J20: 2010 | K20: 2023
A21: Salaries/wages/commission | B21: 6602000 | C21: 9558000 | D21: 904000 | E21: 927000 | F21: 266000 | G21: 311000 | H21: 1146000 | I21: 1029000 | J21: 8918000 | K21: 11826000
A22: Income from a business | B22: 1284000 | C22: 2352000 | D22: 95000 | E22: 124000 | F22: 60000 | G22: 140000 | H22: 379000 | I22: 461000 | J22: 1818000 | K22: =(C22+E22+G22+I22) -> 3077000
A23: Remittances | B23: 2105000 | C23: 2294000 | D23: 111000 | E23: 72000 | F23: 32000 | G23: 29000 | H23: 98000 | I23: 89000 | J23: 2346000 | K23: 2485000
A24: Pensions | B24: 176000 | C24: 337000 | D24: 35000 | E24: 66000 | F24: 15000 | G24: 38000 | H24: 232000 | I24: 293000 | J24: 458000 | K24: =(C24+E24+G24+I24) -> 734000
A25: Grants | B25: 5600000 | C25: 8476000 | D25: 543000 | E25: 742000 | F25: 119000 | G25: 128000 | H25: 166000 | I25: 253000 | J25: 6428000 | K25: 9600000
A26: Sales of farm products and services | B26: 160000 | C26: 35000 | D26: 4000 | E26: N/A | F26: —c | G26: N/A | H26: 52000 | I26: 19000 | J26: 216000 | K26: 54000
A27: Other incomeb | B27: 191000 | C27: 343000 | D27: 27000 | E27: 23000 | F27: 12000 | G27: 5000 | H27: 131000 | I27: 81000 | J27: 362000 | K27: =(C27+E27+G27+I27) -> 452000
A28: No income | B28: 103000 | C28: 251000 | D28: 6000 | E28: 11000 | F28: —c | G28: N/A | H28: —c | I28: 24000 | J28: 113000 | K28: 290000
A29: Total households | B29: 11126000 | C29: 15738000 | D29: 1143000 | E29: 1277000 | F29: 359000 | G29: 444000 | H29: 1676000 | I29: 1546000 | J29: 14304000 | K29: 19005000

Sheet Sources of income by province#
A2: Household sources of incomea by province (actual numbers), 2023
A4: Income source | B4: Eastern Cape | C4: Free State | D4: Gauteng | E4: KwaZulu-Natal | F4: Limpopo | G4: Mpumalanga | H4: North West | I4: Northern Cape | J4: Western Cape | K4: South Africa
A5: Salaries/wages/commission | B5: 902000 | C5: 550000 | D5: 4003000 | E5: 2030000 | F5: 867000 | G5: 880000 | H5: 765000 | I5: 235000 | J5: 1593000 | K5: 11826000
A6: Income from a business | B6: 205000 | C6: 116000 | D6: 1134000 | E6: 568000 | F6: 283000 | G6: 243000 | H6: 166000 | I6: 46000 | J6: 316000 | K6: 3077000
A7: Remittances | B7: 316000 | C7: 132000 | D7: 596000 | E7: 529000 | F7: 325000 | G7: 239000 | H7: 216000 | I7: 44000 | J7: 88000 | K7: =SUM(B7:J7) -> 2485000
A8: Pensions | B8: 80000 | C8: 47000 | D8: 197000 | E8: 130000 | F8: 51000 | G8: 39000 | H8: 47000 | I8: 16000 | J8: 128000 | K8: 734000
A9: Grants | B9: 1152000 | C9: 645000 | D9: 2141000 | E9: 1837000 | F9: 1090000 | G9: 888000 | H9: 773000 | I9: 230000 | J9: 844000 | K9: =SUM(B9:J9) -> 9600000
A10: Sales of farm products and services | B10: 10000 | C10: 4000 | D10: 8000 | E10: —c | F10: 3000 | G10: 9000 | H10: 14000 | I10: 4000 | J10: —c | K10: 54000
A11: Other incomeb | B11: 33000 | C11: 26000 | D11: 206000 | E11: 45000 | F11: 14000 | G11: 21000 | H11: 17000 | I11: 7000 | J11: 84000 | K11: 452000
A12: No income | B12: 15000 | C12: 8000 | D12: 119000 | E12: 29000 | F12: 31000 | G12: 16000 | H12: 20000 | I12: 4000 | J12: 48000 | K12: 290000
A13: Source: Stats SA, General Household Survey 2022 Addendum tables, Statistical release P0318, 23 May 2024, Table 16.1, p154
A14: a More than one source of income is possible. The figures therefore do not add up vertically.
A15: b For example, income from rentals or interest.
A16: c Figures too small to provide reliable estimates.

Sheet Sources of income by province%
A2: Household sources of incomea by province(proportionsb), 2023
A4: Income source | B4: Eastern Cape | C4: Free State | D4: Gauteng | E4: KwaZulu-Natal | F4: Limpopo | G4: Mpumalanga | H4: North West | I4: Northern Cape | J4: Western Cape | K4: South Africa | M4: Income source | N4: Eastern Cape | O4: Free State | P4: Gauteng | Q4: KwaZulu-Natal | R4: Limpopo | S4: Mpumalanga | T4: North West | U4: Northern Cape | V4: Western Cape | W4: South Africa
A5: Salaries/wages/commission | B5: =(B19/total178484) -> 0.5122089722 | C5: =(C19/total9999) -> 0.5505505506 | D5: =(D19/Total5794048) -> 0.6926803945 | E5: =(E19/Total32487) -> 0.6166464156 | F5: =(F19/Total17888) -> 0.4884507042 | G5: =(G19/Total14897878) -> 0.5894172806 | H5: =(H19/Total13756565) -> 0.5503597122 | I5: =(I19/total380000) -> 0.6184210526 | J5: =(J19/total2145367) -> 0.7457865169 | K5: =(K19/total190000056) -> 0.6222573007 | M5: Salaries/wages/commission | N5: 829000 | O5: 526000 | P5: 3746000 | Q5: 1844000 | R5: 848000 | S5: 804000 | T5: 706000 | U5: 224000 | V5: 1512000 | W5: 11038000
A6: Income from a business | B6: 0.11641113 | C6: 0.1161161161 | D6: 0.1962277211 | E6: =(E20/Total32487) -> 0.1725394897 | F6: 0.1594366197 | G6: 0.1627595445 | H6: 0.1194244604 | I6: 0.1210526316 | J6: =(J20/total2145367) -> 0.1479400749 | K6: 0.1619047619 | M6: Income from a business | N6: 190000 | O6: 115000 | P6: 1042000 | Q6: 504000 | R6: 264000 | S6: 271000 | T6: 186000 | U6: 47000 | V6: 330000 | W6: 2950000
A7: Remittances | B7: 0.179443498 | C7: 0.1321321321 | D7: 0.1031320298 | E7: =(E21/Total32487) -> 0.1606925881 | F7: 0.1830985915 | G7: 0.1600803751 | H7: 0.1553956835 | I7: 0.1157894737 | J7: =(J21/total2145367) -> 0.04119850187 | K7: 0.1307550645 | M7: Remittances | N7: 365000 | O7: 135000 | P7: 569000 | Q7: 537000 | R7: 319000 | S7: 246000 | T7: 213000 | U7: 35000 | V7: 136000 | W7: =SUM(N7:V7) -> 2555000
A8: Pensions | B8: 0.04542873367 | C8: 0.04704704705 | D8: 0.03408894272 | E8: =(E22/Total32487) -> 0.03948967193 | F8: 0.02873239437 | G8: 0.02612190221 | H8: 0.03381294964 | I8: 0.04210526316 | J8: =(J22/total2145367) -> 0.05992509363 | K8: 0.03862141542 | M8: Pensions | N8: 82000 | O8: 37000 | P8: 211000 | Q8: 121000 | R8: 44000 | S8: 35000 | T8: 28000 | U8: 17000 | V8: 146000 | W8: 722000
A9: Grants | B9: 0.6541737649 | C9: 0.6456456456 | D9: 0.3704793217 | E9: =(E23/Total32487) -> 0.5580194411 | F9: 0.614084507 | G9: 0.5947756196 | H9: 0.5561151079 | I9: 0.6052631579 | J9: =(J23/total2145367) -> 0.3951310861 | K9: 0.5051302289 | M9: Grants | N9: 1096000 | O9: 597000 | P9: 2089000 | Q9: 1806000 | R9: 1075000 | S9: 902000 | T9: 720000 | U9: 218000 | V9: 772000 | W9: =SUM(N9:V9) -> 9275000
A10: Sales of farm products and services | B10: 0.005678591709 | C10: 0.004004004004 | D10: 0.001384322547 | E10: —d | F10: 0.001690140845 | G10: 0.006028131279 | H10: 0.01007194245 | I10: 0.01052631579 | J10: —d | K10: 0.002841357537 | M10: Sales of farm products and services | N10: 4000 | O10: N/A | P10: 3000 | Q10: 6000 | R10: 9000 | S10: 7000 | T10: 9000 | U10: 4000 | V10: N/A | W10: 44000
A11: Other incomec | B11: 0.01873935264 | C11: 0.02602602603 | D11: 0.03564630559 | E11: =(E25/Total32487) -> 0.01366950182 | F11: 0.007887323944 | G11: 0.01406563965 | H11: 0.01223021583 | I11: 0.01842105263 | J11: =(J25/total2145367) -> 0.0393258427 | K11: 0.02378321494 | M11: Other incomeb | N11: 26000 | O11: 41000 | P11: 216000 | Q11: 95000 | R11: 17000 | S11: 21000 | T11: 35000 | U11: 10000 | V11: 108000 | W11: =SUM(N11:V11) -> 569000
A12: No income | B12: 0.008517887564 | C12: 0.008008008008 | D12: 0.02059179789 | E12: =(E26/Total32487) -> 0.008809234508 | F12: 0.01746478873 | G12: 0.01071667783 | H12: 0.01438848921 | I12: 0.01052631579 | J12: =(J26/total2145367) -> 0.02247191011 | K12: 0.01525914233 | M12: No income | N12: 20000 | O12: 11000 | P12: 147000 | Q12: 49000 | R12: 33000 | S12: 11000 | T12: 24000 | U12: 10000 | V12: 30000 | W12: 336000
A13: Source: Stats SA, General Household Survey 2023 Addendum tables, Statistical release P0318, 23 May 2024, Table 16.1, p154 | N13: 1742000 | O13: 975000 | P13: 5587000 | Q13: 3200000 | R13: 1729000 | S13: 1445000 | T13: 1349000 | U13: 371000 | V13: 2079000 | W13: 18477000
A14: a More than one source of income is possible. The figures therefore do not add up vertically.
A15: b CRA calculations.
A16: c For example, income from rentals or interest.
A17: d Figures too small to provide reliable estimates.
A18: Income source | B18: Eastern Cape | C18: Free State | D18: Gauteng | E18: KwaZulu-Natal | F18: Limpopo | G18: Mpumalanga | H18: North West | I18: Northern Cape | J18: Western Cape | K18: South Africa
A19: Salaries/wages/commission | B19: 902000 | C19: 550000 | D19: 4003000 | E19: 2030000 | F19: 867000 | G19: 880000 | H19: 765000 | I19: 235000 | J19: 1593000 | K19: 11826000
A20: Income from a business | B20: 205000 | C20: 116000 | D20: 1134000 | E20: 568000 | F20: 283000 | G20: 243000 | H20: 166000 | I20: 46000 | J20: 316000 | K20: 3077000
A21: Remittances | B21: 316000 | C21: 132000 | D21: 596000 | E21: 529000 | F21: 325000 | G21: 239000 | H21: 216000 | I21: 44000 | J21: 88000 | K21: =SUM(B21:J21) -> 2485000
A22: Pensions | B22: 80000 | C22: 47000 | D22: 197000 | E22: 130000 | F22: 51000 | G22: 39000 | H22: 47000 | I22: 16000 | J22: 128000 | K22: 734000
A23: Grants | B23: 1152000 | C23: 645000 | D23: 2141000 | E23: 1837000 | F23: 1090000 | G23: 888000 | H23: 773000 | I23: 230000 | J23: 844000 | K23: =SUM(B23:J23) -> 9600000
A24: Sales of farm products and services | B24: 10000 | C24: 4000 | D24: 8000 | E24: —c | F24: 3000 | G24: 9000 | H24: 14000 | I24: 4000 | J24: —c | K24: 54000
A25: Other incomeb | B25: 33000 | C25: 26000 | D25: 206000 | E25: 45000 | F25: 14000 | G25: 21000 | H25: 17000 | I25: 7000 | J25: 84000 | K25: 452000
A26: No income | B26: 15000 | C26: 8000 | D26: 119000 | E26: 29000 | F26: 31000 | G26: 16000 | H26: 20000 | I26: 4000 | J26: 48000 | K26: 290000
B27: 1761000 | C27: 999000 | D27: 5779000 | E27: 3292000 | F27: 1775000 | G27: 1493000 | H27: 1390000 | I27: 380000 | J27: 2136000 | K27: 19005000

Sheet Top reasons for saving
B2: Top reasons for saving, 2023
B4: Reasons | C4: Proportion
B5: Food | C5: 0.27
B6: Funeral costs | C6: 0.12
B7: Nothing specific/emergency | C7: 0.07
B8: School fees/education | C8: 0.08
B9: House deposits/improvements | C9: 0.05
B10: Not currently saving | C10: 0.32
B11: Source: Finmark Trust, FinScope Consumer South Africa 2023 Survey Launch, 23 April 2024, p27
B12: Finmark Trust used a demographically representative sample of 5 600 respondents.

Sheet Personal income

Sheet Average take home pay index
B2: Personal income
C4: Average take-home pay, 2017-24
C6: Year | D6: Nominal average take home pay | E6: Real take home pay
D7: —R—
C8: 2017-01-01 | D8: 13902 | E8: 13769
C9: 2017-06-01 | D9: 14022 | E9: 13924
C10: 2018-01-01 | D10: 14687 | E10: 13916
C11: 2018-06-01 | D11: 14342 | E11: 13622
C12: 2019-01-19 | D12: 15090 | E12: 13588
C13: 2019-06-19 | D13: 15598 | E13: 14272
C14: 2020-01-19 | D14: 16502 | E14: 14297
C15: 2020-06-19 | D15: 15869 | E15: 14197
C16: 2021-01-01 | D16: 15608 | E16: 13022
C17: 2021-06-01 | D17: 14883 | E17: 12512
C18: 2022-01-01 | D18: 15543 | E18: 15388
C19: 2022-06-01 | D19: 14683 | E19: 14355
C20: 2024-07-01 | D20: 15492 | E20: 13634
C21: Source: BankservAfrica, Take Home Pay Index

Sheet Wages and salaries

Sheet Average monthly earnings in for
A2: Wages and salaries
A4: Average earnings
A6: Average monthly earnings in formal non-agricultural industries (current prices)a , 2020-24
B8: 2020-02-01 | C8: 2021-02-21 | D8: 2022-02-22 | E8: 2023-02-23 | F8: 2024-02-23 | G8: Change 2020-24
A9: Industry | B9: —R—
A10: Mining and quarrying | B10: 27616 | C10: 28972 | D10: 29693 | E10: 31228 | F10: 32504 | G10: =(F10-B10)/B10 -> 0.1769988413 | H10: =(F10-B10)/B10 -> 0.1769988413
A11: Manufacturing | B11: 19433 | C11: 20192 | D11: 20991 | E11: 22403 | F11: 23287 | G11: =(F11-B11)/B11 -> 0.1983224412
A12: Electricity, gas and water | B12: 44112 | C12: 46665 | D12: 46351 | E12: 48832 | F12: 52432 | G12: 0.1886108089
A13: Construction | B13: 18646 | C13: 18246 | D13: 19729 | E13: 21123 | F13: 22601 | G13: 0.2121098359
A14: Wholesale and retail trade, repair of motor vehicles, motor cycles, personal and household goods, hotels and restaurants | B14: 14705 | C14: 15301 | D14: 15981 | E14: 16390 | F14: 17064 | G14: 0.1604216253
A15: Transport, storage and communication | B15: 25271 | C15: 24887 | D15: 26430 | E15: 28060 | F15: 30726 | G15: 0.2158600768
A16: Financial intermediation, insurance, real estate and business services | B16: 23893 | C16: 24885 | D16: 26452 | E16: 29200 | F16: 30913 | G16: 0.2938099025
A17: Community, social and personal servicesb | B17: 27784 | C17: 28301 | D17: 28365 | E17: 30819 | F17: 31532 | G17: 0.1348977829
A18: Average | B18: 22376 | C18: 23087 | D18: 23851 | E18: 25602 | F18: 26793 | G18: 0.1973989989
A19: Source: Stats SA, Quarterly Employment Statistics March 2024, Statistical release P0277, 25 June 2024, pp45-49
A20: a Including bonuses and overtime.
A21: b This industry includes government but does not include domestic employees in private households as their jobs are not classified as formal.

Sheet Average monthly earnings non-ag
A2: Average monthly earnings in formal non-agricultural industries (constant prices), 2020-24
B4: Feb-20a | C4: Feb-21a | D4: Feb-22b | E4: Feb-23b | F4: 2024-02-24 | G4: Change 2020-24
A5: Industry | B5: —R—
A6: Mining and quarrying | B6: 23972 | C6: 24449 | D6: 29457 | E6: 28942 | F6: 28537 | G6: =(F6-B6)/B6 -> 0.1904305023
A7: Manufacturing | B7: 16869 | C7: 17039 | D7: 20824 | E7: 20762 | F7: 20445 | G7: =(F7-B7)/B7 -> 0.2119864841
A8: Electricity, gas and water | B8: 38291 | C8: 39380 | D8: 45983 | E8: 45256 | F8: 46033 | G8: 0.2021885038
A9: Construction | B9: 16186 | C9: 15398 | D9: 19572 | E9: 19576 | F9: 19843 | G9: 0.2259359941
A10: Wholesale and retail trade: repair of motor vehicles, motor cycles, personal and household goods, hotels and restaurants | B10: 12765 | C10: 12912 | D10: 15853 | E10: 15189 | F10: 14982 | G10: 0.1736780259
A11: Transport, storage and communication | B11: 21937 | C11: 21002 | D11: 26220 | E11: 26005 | F11: 26976 | G11: 0.2297032411
A12: Financial intermediation, insurance, real estate and business services | B12: 20740 | C12: 21001 | D12: 26242 | E12: 27062 | F12: 27140 | G12: 0.3085824494
A13: Community, social and personal servicesc | B13: 24118 | C13: 23882 | D13: 28140 | E13: 28563 | F13: 27684 | G13: 0.1478563728
A14: Average | B14: 19423 | C14: 19482 | D14: 23662 | E14: 23729 | F14: 23552 | G14: 0.2125830201
A15: Source: Stats SA, Quarterly Employment Statistics June 2024, Statistical release P0277, 25 June 2024, pp50-54
A16: a At constant 2016 prices, including bonuses and overtime.
A17: b Figures from November 2021 onwards are based on the December 2021 CPI headline index numbers.
A18: c This industry includes government but does not include domestic servants in private households as this work is not classified as formal.

Sheet Graph Average monthly earnings
B1: 2020-02-16 | C1: Feb-17a | D1: Feb-19a | E1: 2024-02-20
A2: Mining and quarrying | B2: 23972 | E2: 28537
A3: Manufacturing | B3: 16869 | E3: 20445
A4: Electricity, gas and water | B4: 38291 | E4: 46033
A5: Construction | B5: 16186 | E5: 19843
A6: Wholesale and retail trade: repair of motor vehicles, motor cycles, personal and household goods, hotels and restaurants. | B6: 12765 | E6: 14982
A7: Transport, storage and communication | B7: 21937 | E7: 26976
A8: Financial intermediation, insurance, real estate and business services | B8: 20740 | E8: 27140
A9: Community, social and personal services | B9: 24118 | E9: 27684
B10: 19423 | E10: 23552

Sheet EXPENDITURE.CONSUMPTION

Sheet Monthly HH Expenditure by race#
B2: EXPENDITURE AND CONSUMPTION
B4: Monthly household expenditure categories by racea (actual numbers), 2002 and 2023
C6: —2002—
C7: Category | D7: Black | E7: Coloured | F7: Indian/Asian | G7: White | H7: Totalb
C8: R0-R399 | D8: 3511000 | E8: 151000 | F8: 6000 | G8: 14000 | H8: 3686000
C9: R400-R799 | D9: 2907000 | E9: 213000 | F9: 23000 | G9: 56000 | H9: 3201000
C10: R800-R1 199 | D10: 1109000 | E10: 147000 | F10: 37000 | G10: 113000 | H10: 1407000
C11: R1 200-R1 799 | D11: 567000 | E11: 114000 | F11: 38000 | G11: 115000 | H11: 834000
C12: R1 800-R2 499 | D12: 344000 | E12: 97000 | F12: 37000 | G12: 172000 | H12: 652000
C13: R2 500-R4 999 | D13: 306000 | E13: 103000 | F13: 69000 | G13: 364000 | H13: 844000
C14: R5 000-R9 999 | D14: 118000 | E14: 43000 | F14: 47000 | G14: 343000 | H14: 553000
C15: R10 000+ | D15: 26000 | E15: 9000 | F15: 11000 | G15: 150000 | H15: 195000
C16: Refused to say, do not know, unspecified | D16: 184000 | E16: 54000 | F16: 15000 | G16: 153000 | H16: 409000
C17: Total householdsb | D17: 9072000 | E17: 930000 | F17: 282000 | G17: 1479000 | H17: 11780000
C18: —2023—
C19: R0-R399 | D19: 376000 | E19: 10000 | F19: —c | G19: —c | H19: 391000
C20: R400-R799 | D20: 651000 | E20: 29000 | F20: —c | G20: —c | H20: 684000
C21: R800-R1 199 | D21: 1125000 | E21: 37000 | F21: 6000 | G21: —c | H21: 1171000
C22: R1 200-R1 799 | D22: 1630000 | E22: 63000 | F22: 7000 | G22: 5000 | H22: =SUM(D22:G22) -> 1705000
C23: R1 800-R2 499 | D23: 2544000 | E23: 121000 | F23: 14000 | G23: 23000 | H23: 2702000
C24: R2 500-R4 999 | D24: 4377000 | E24: 275000 | F24: 45000 | G24: 61000 | H24: 4758000
C25: R5 000-R9 999 | D25: 2784000 | E25: 313000 | F25: 123000 | G25: 253000 | H25: 3473000
C26: R10 000-R19 999 | D26: 1302000 | E26: 243000 | F26: 121000 | G26: 428000 | H26: 2095000
C27: R20 000-R39 999 | D27: 523000 | E27: 117000 | F27: 71000 | G27: 439000 | H27: 1150000
C28: R40 000+ | D28: 149000 | E28: 54000 | F28: 30000 | G28: 266000 | H28: 499000
C29: Refused to say, do not know, unspecified | D29: 276000 | E29: 11000 | F29: 23000 | G29: 40000 | H29: 379000
C30: Total householdsb | D30: 15738000 | E30: 1277000 | F30: 444000 | G30: 1546000 | H30: 19005000
B31: Source: Stats SA, General Household Survey 2002, Statistical release P0318, 15 December 2003, Table 9.2, p66; General Household Survey 2023 Addendum tables, Statistical release P0318, 23 May 2024, Table 16.4, p157
B32: a This refers to the race of the head of the household.
B33: b Figures should add up vertically and horizontally but may not, owing to rounding.
B34: c Figures are too small to provide reliable estimates.

Sheet Graph Monthly HH expenditure
B1: 2022 | C1: 2023
A2: R0-R399 | B2: 380000 | C2: 391000
A3: R400-R799 | B3: 761000 | C3: 684000
A4: R800-R1 199 | B4: 1265000 | C4: 1171000
A5: R1 200-R1 799 | B5: 1953000 | C5: 1705000
A6: R1 800-R2 499 | B6: 2769000 | C6: 2702000
A7: R2 500-R4 999 | B7: 4427000 | C7: 4758000
A8: R5 000-R9 999 | B8: 2938000 | C8: 3473000
A9: R10 000-R19 999 | B9: 2037000 | C9: 2095000
A10: R20 000-R39 999 | B10: 1032000 | C10: 1150000
A11: R40 000+ | B11: 393000 | C11: 499000
A12: Refused to say, do not know, unspecified | B12: 518000 | C12: 379000
A13: Total householdsb | B13: =SUM(#REF!) ->  | C13: =SUM(#REF!) -> 
A19: —2023—
A20: R0-R399 | B20: 376000 | C20: 10000 | D20: —c | E20: —c | F20: 391000
A21: R400-R799 | B21: 651000 | C21: 29000 | D21: —c | E21: —c | F21: 684000
A22: R800-R1 199 | B22: 1125000 | C22: 37000 | D22: 6000 | E22: —c | F22: 1171000
A23: R1 200-R1 799 | B23: 1630000 | C23: 63000 | D23: 7000 | E23: 5000 | F23: =SUM(B23:E23) -> 1705000
A24: R1 800-R2 499 | B24: 2544000 | C24: 121000 | D24: 14000 | E24: 23000 | F24: 2702000
A25: R2 500-R4 999 | B25: 4377000 | C25: 275000 | D25: 45000 | E25: 61000 | F25: 4758000
A26: R5 000-R9 999 | B26: 2784000 | C26: 313000 | D26: 123000 | E26: 253000 | F26: 3473000
A27: R10 000-R19 999 | B27: 1302000 | C27: 243000 | D27: 121000 | E27: 428000 | F27: 2095000
A28: R20 000-R39 999 | B28: 523000 | C28: 117000 | D28: 71000 | E28: 439000 | F28: 1150000
A29: R40 000+ | B29: 149000 | C29: 54000 | D29: 30000 | E29: 266000 | F29: 499000
A30: Refused to say, do not know, unspecified | B30: 276000 | C30: 11000 | D30: 23000 | E30: 40000 | F30: 379000

Sheet Monthly HH Expenditure by race%
A2: Monthly household expenditure categories by racea (proportionsb), 2002 and 2023
A4: —2002—
A5: Category | B5: Black | C5: Coloured | D5: Indian/Asian | E5: White | F5: Total
A6: R0–R399 | B6: 0.3870149912 | C6: 0.1623655914 | D6: 0.02127659574 | E6: 0.009465855308 | F6: 0.3129032258
A7: R400–R799 | B7: 0.3204365079 | C7: 0.2290322581 | D7: 0.08156028369 | E7: 0.03786342123 | F7: 0.2717317487
A8: R800–R1 199 | B8: 0.1222442681 | C8: 0.1580645161 | D8: 0.1312056738 | E8: 0.07640297498 | F8: 0.1194397284
A9: R1 200–R1 799 | B9: 0.0625 | C9: 0.1225806452 | D9: 0.134751773 | E9: 0.07775524003 | F9: 0.07079796265
A10: R1 800–R2 499 | B10: 0.03791887125 | C10: 0.1043010753 | D10: 0.1312056738 | E10: 0.1162947938 | F10: 0.05534804754
A11: R2 500–R4 999 | B11: 0.03373015873 | C11: 0.1107526882 | D11: 0.2446808511 | E11: 0.246112238 | F11: 0.07164685908
A12: R5 000–R9 999 | B12: 0.01300705467 | C12: 0.04623655914 | D12: 0.1666666667 | E12: 0.231913455 | F12: 0.04694397284
A13: R10 000+ | B13: 0.002865961199 | C13: 0.009677419355 | D13: 0.0390070922 | E13: 0.1014198783 | F13: 0.01655348048
A14: Refused to say, do not know, unspecified | B14: 0.02028218695 | C14: 0.05806451613 | D14: 0.05319148936 | E14: 0.1034482759 | F14: 0.03471986418
A15: Total householdsc | B15: 1 | C15: 1 | D15: 1 | E15: 1 | F15: 1
A16: —2023—
A17: R0-R399 | B17: =(B36/Total15730) -> 0.02389121871 | C17: =(C36/Total1270) -> 0.007830853563 | D17: —c | E17: —c | F17: =(F36/Total19000) -> 0.02057353328 | H17: R0-R399 | I17: 366000 | J17: 13000 | K17: —c | L17: —c | M17: 380000
A18: R400-R799 | B18: 0.04136484941 | C18: 0.02270947533 | D18: —c | E18: —c | F18: 0.03599052881 | H18: R400-R799 | I18: 732000 | J18: 28000 | K18: —c | L18: —c | M18: 761000
A19: R800-R1 199 | B19: 0.07148303469 | C19: 0.02897415818 | D19: =(D38/Total440) -> 0.01351351351 | E19: —c | F19: 0.06161536438 | H19: R800-R1 199 | I19: 1217000 | J19: 34000 | K19: 5000 | L19: 9000 | M19: 1265000
A20: R1 200-R1 799 | B20: 0.1035709747 | C20: 0.04933437745 | D20: 0.01576576577 | E20: =(E39/Total1540) -> 0.003234152652 | F20: 0.08971323336 | H20: R1 200-R1 799 | I20: 1861000 | J20: 65000 | K20: 9000 | L20: 18000 | M20: 1953000
A21: R1 800-R2 499 | B21: 0.1616469691 | C21: 0.09475332811 | D21: 0.03153153153 | E21: 0.0148771022 | F21: 0.1421731123 | H21: R1 800-R2 499 | I21: 2605000 | J21: 117000 | K21: 16000 | L21: 32000 | M21: 2769000
A22: R2 500-R4 999 | B22: 0.2781166603 | C22: 0.215348473 | D22: 0.1013513514 | E22: 0.03945666235 | F22: 0.2503551697 | H22: R2 500-R4 999 | I22: 4027000 | J22: 285000 | K22: 36000 | L22: 78000 | M22: 4427000
A23: R5 000-R9 999 | B23: 0.1768966832 | C23: 0.2451057165 | D23: 0.277027027 | E23: 0.1636481242 | F23: 0.1827413838 | H23: R5 000-R9 999 | I23: 2247000 | J23: 338000 | K23: 91000 | L23: 262000 | M23: 2938000
A24: R10 000-R19 999 | B24: 0.08272969882 | C24: 0.1902897416 | D24: 0.2725225225 | E24: 0.276843467 | F24: 0.1102341489 | H24: R10 000-R19 999 | I24: 1211000 | J24: 237000 | K24: 142000 | L24: 447000 | M24: 2037000
A25: R20 000-R39 999 | B25: 0.03323166857 | C25: 0.09162098669 | D25: 0.1599099099 | E25: 0.2839586028 | F25: 0.060510392 | H25: R20 000-R39 999 | I25: 408000 | J25: 100000 | K25: 89000 | L25: 435000 | M25: 1032000
A26: R40 000+ | B26: 0.009467530817 | C26: 0.04228660924 | D26: 0.06756756757 | E26: 0.1720569211 | F26: 0.02625624836 | H26: R40 000+ | I26: 127000 | J26: 18000 | K26: 35000 | L26: 212000 | M26: 393000
A27: Refused to say, do not know, unspecified | B27: 0.01753717118 | C27: 0.008613938919 | D27: 0.0518018018 | E27: 0.02587322122 | F27: 0.01994212049 | H27: Refused to say, do not know, unspecified | I27: 425000 | J27: 23000 | K27: 11000 | L27: 57000 | M27: 518000
A28: Total householdsd | B28: =SUM(B17:B27) -> 0.9999364595 | C28: 1 | D28: 1 | E28: 1 | F28: =SUM(F17:F27) -> 1.000105235 | H28: Total householdsb | I28: 15227000 | J28: 1258000 | K28: 436000 | L28: 1556000 | M28: =SUM(I28:L28) -> 18477000
A30: Source: Stats SA, General Household Survey 2002, Statistical release P0318, 15 December 2003, Table 9.2, p66; General Household Survey 2023 Addendum tables, Statistical release P0318, 23 May 2024, Table 16.4, p157
A31: a This refers to the race of the head of the household.
A32: b CRA calculations.
A33: c Figures are too small to provide reliable estimates.
A34: d Figures should add up vertically but may not, owing to rounding.
A35: —2023—
A36: R0-R399 | B36: 376000 | C36: 10000 | D36: —c | E36: —c | F36: 391000
A37: R400-R799 | B37: 651000 | C37: 29000 | D37: —c | E37: —c | F37: 684000
A38: R800-R1 199 | B38: 1125000 | C38: 37000 | D38: 6000 | E38: —c | F38: 1171000
A39: R1 200-R1 799 | B39: 1630000 | C39: 63000 | D39: 7000 | E39: 5000 | F39: =SUM(B39:E39) -> 1705000
A40: R1 800-R2 499 | B40: 2544000 | C40: 121000 | D40: 14000 | E40: 23000 | F40: 2702000
A41: R2 500-R4 999 | B41: 4377000 | C41: 275000 | D41: 45000 | E41: 61000 | F41: 4758000
A42: R5 000-R9 999 | B42: 2784000 | C42: 313000 | D42: 123000 | E42: 253000 | F42: 3473000
A43: R10 000-R19 999 | B43: 1302000 | C43: 243000 | D43: 121000 | E43: 428000 | F43: 2095000
A44: R20 000-R39 999 | B44: 523000 | C44: 117000 | D44: 71000 | E44: 439000 | F44: 1150000
A45: R40 000+ | B45: 149000 | C45: 54000 | D45: 30000 | E45: 266000 | F45: 499000
A46: Refused to say, do not know, unspecified | B46: 276000 | C46: 11000 | D46: 23000 | E46: 40000 | F46: 379000
A47: Total householdsb | B47: 15738000 | C47: 1277000 | D47: 444000 | E47: 1546000 | F47: 19005000

Sheet Graph % Monthly HH Expenditure
B1: 2022 | C1: 2023
A2: R0-R399 | B2: 0.02056610922 | C2: 0.021
A3: R400-R799 | B3: 0.04118633977 | C3: 0.036
A4: R800-R1 199 | B4: 0.06846349516 | C4: 0.062
A5: R1 200-R1 799 | B5: 0.1056989771 | C5: 0.09
A6: R1 800-R2 499 | B6: 0.1498619906 | C6: 0.142
A7: R2 500-R4 999 | B7: 0.2395951724 | C7: 0.25
A8: R5 000-R9 999 | B8: 0.1590084971 | C8: 0.183
A9: R10 000-R19 999 | B9: 0.1102451697 | C9: 0.11
A10: R20 000-R39 999 | B10: 0.05585322293 | C10: 0.061
A11: R40 000+ | B11: 0.02126968664 | C11: 0.026
A12: Refused to say, do not know, unspecified | B12: 0.02803485414 | C12: 0.02
A13: Total householdsb

Sheet Spending R10 000 by race
A2: Households spending R10 000 or more per month by race, 2009-23
B4: —Black— | E4: —Coloured— | H4: —Indian/Asian— | K4: —White— | N4: —Total—
A5: Year | B5: Number of households | C5: —Spending R10 000 or more— | E5: Number of households | F5: —Spending R10 000 or more— | H5: Number of households | I5: —Spending R10 000 or more— | K5: Number of households | L5: —Spending R10 000 or more— | N5: Number of households | O5: —Spending R10 000 or more—
C6: Number | D6: Proportion | F6: Number | G6: Proportion | I6: Number | J6: Proportion | L6: Number | M6: Proportion | O6: Number | P6: Proportion
A7: 2009 | B7: 10680000 | C7: 208000 | D7: =C7/B7 -> 0.01947565543 | E7: 1109000 | F7: 83000 | G7: =F7/E7 -> 0.07484220018 | H7: 348000 | I7: 60000 | J7: =I7/H7 -> 0.1724137931 | K7: 1675000 | L7: 575000 | M7: =L7/K7 -> 0.3432835821 | N7: 13812000 | O7: 926000 | P7: =O7/N7 -> 0.06704315088
A8: 2010 | B8: 11126000 | C8: 276000 | D8: 0.02480675894 | E8: 1143000 | F8: 107000 | G8: 0.09361329834 | H8: 359000 | I8: 74000 | J8: =I8/H8 -> 0.2061281337 | K8: 1676000 | L8: 719000 | M8: 0.4289976134 | N8: 14304000 | O8: 1177000 | P8: 0.08228467562
A9: 2011 | B9: 11536000 | C9: 406000 | D9: 0.03519417476 | E9: 1174000 | F9: 116000 | G9: 0.09880749574 | H9: 369000 | I9: 84000 | J9: =I9/H9 -> 0.2276422764 | K9: 1677000 | L9: 762000 | M9: 0.4543828265 | N9: 14756000 | O9: 1368000 | P9: 0.09270805096
A10: 2012 | B10: 11592000 | C10: 562000 | D10: 0.04848171153 | E10: 1075000 | F10: 151000 | G10: 0.1404651163 | H10: 346000 | I10: 112000 | J10: 0.323699422 | K10: 1618000 | L10: 851000 | M10: 0.5259579728 | N10: 14631000 | O10: 1679000 | P10: 0.1147563393
A11: 2013 | B11: 12038000 | C11: 665000 | D11: 0.05524173451 | E11: 1096000 | F11: 200000 | G11: 0.1824817518 | H11: 354000 | I11: 106000 | J11: 0.2994350282 | K11: 1619000 | L11: 859000 | M11: 0.5305744287 | N11: 15107000 | O11: 1831000 | P11: 0.1212020917
A12: 2014 | B12: 12506000 | C12: 1012000 | D12: 0.08092115784 | E12: 1116000 | F12: 222000 | G12: 0.1989247312 | H12: 361000 | I12: 154000 | J12: 0.4265927978 | K12: 1619000 | L12: 988000 | M12: 0.6102532427 | N12: 15602000 | O12: 2377000 | P12: 0.1523522625
A13: 2015 | B13: 12998000 | C13: 1058000 | D13: 0.08139713802 | E13: 1136000 | F13: 215000 | G13: 0.1892605634 | H13: 369000 | I13: 156000 | J13: 0.4227642276 | K13: 1619000 | L13: 1025000 | M13: 0.6331068561 | N13: 16122000 | O13: 2454000 | P13: 0.1522143655
A14: 2016 | B14: 13512000 | C14: 1210000 | D14: 0.0895500296 | E14: 1154000 | F14: 270000 | G14: 0.2339688042 | H14: 377000 | I14: 163000 | J14: 0.4323607427 | K14: 1619000 | L14: 1051000 | M14: 0.6491661519 | N14: 16662000 | O14: 2695000 | P14: 0.1617452887
A15: 2017 | B15: 13042000 | C15: 1241000 | D15: 0.09515411747 | E15: 1172000 | F15: 295000 | G15: 0.2517064846 | H15: 397000 | I15: 164000 | J15: 0.4130982368 | K15: 1588000 | L15: 1043000 | M15: 0.6568010076 | N15: 16199000 | O15: 2742000 | P15: 0.169269708
A16: 2018 | B16: 13493000 | C16: 1434000 | D16: 0.106277329 | E16: 1191000 | F16: 297000 | G16: 0.2493702771 | H16: 405000 | I16: 185000 | J16: 0.4567901235 | K16: 1582000 | L16: 1101000 | M16: 0.695954488 | N16: 16671000 | O16: 3016000 | P16: 0.1809129626
A17: 2019 | B17: 13964000 | C17: 1465000 | D17: 0.1049126325 | E17: 1210000 | F17: 362000 | G17: =F17/E17 -> 0.2991735537 | H17: 414000 | I17: 226000 | J17: =I17/H17 -> 0.5458937198 | K17: 1575000 | L17: 1096000 | M17: 0.6958730159 | N17: 17163000 | O17: 3149000 | P17: 0.1834760823
A18: 2020 | B18: 14209000 | C18: 1327000 | D18: 0.09339151242 | E18: 1219000 | F18: 343000 | G18: =F18/E18 -> 0.2813781788 | H18: 418000 | I18: 175000 | J18: =I18/H18 -> 0.4186602871 | K18: 1571000 | L18: 1019000 | M18: 0.6486314449 | N18: 17418000 | O18: 2864000 | P18: 0.1644276036
A19: 2021 | B19: 14716000 | C19: 1535000 | D19: 0.1043082359 | E19: 1239000 | F19: 355000 | G19: =F19/E19 -> 0.2865213882 | H19: 427000 | I19: 164000 | J19: =I19/H19 -> 0.3840749415 | K19: 1564000 | L19: 1073000 | M19: 0.6860613811 | N19: 17947000 | O19: 3127000 | P19: 0.1742352482
A20: 2022 | B20: 15227000 | C20: 1746000 | D20: 0.1146647403 | E20: 1258000 | F20: 355000 | G20: =F20/E20 -> 0.2821939587 | H20: 436000 | I20: 266000 | J20: =I20/H20 -> 0.6100917431 | K20: 1556000 | L20: 1094000 | M20: 0.7030848329 | N20: 18477000 | O20: 3462000 | P20: 0.1873680792
A21: 2023 | B21: 15738000 | C21: 1974000 | D21: 0.1254288982 | E21: 1277000 | F21: 414000 | G21: =F21/E21 -> 0.3241973375 | H21: 444000 | I21: 222000 | J21: =I21/H21 -> 0.5 | K21: 1546000 | L21: 1133000 | M21: 0.7328589909 | N21: 19005000 | O21: 3744000 | P21: 0.1970007893
A22: Source: Stats SA; CRA calculations

Sheet HH expenditure by prov#
A2: Monthly household expenditure categories by province (actual numbers), 2023
A4: Category | B4: Eastern Cape | C4: Free State | D4: Gauteng | E4: KwaZulu- Natal | F4: Limpopo | G4: Mpumalanga | H4: North West | I4: Northern Cape | J4: Western Cape | K4: Total
A5: R 0-R 399 | B5: 46000 | C5: 31000 | D5: 87000 | E5: 62000 | F5: 39000 | G5: 29000 | H5: 50000 | I5: 7000 | J5: 23000 | K5: 391000
A6: R 400-R 799 | B6: 72000 | C6: 50000 | D6: 154000 | E6: 91000 | F6: 92000 | G6: 76000 | H6: 86000 | I6: 10000 | J6: 53000 | K6: 684000
A7: R 800-R 1 199 | B7: 127000 | C7: 67000 | D7: 248000 | E7: 215000 | F7: 196000 | G7: 113000 | H7: 100000 | I7: 22000 | J7: 83000 | K7: 1171000
A8: R 1 200-R 1 799 | B8: 148000 | C8: 116000 | D8: 397000 | E8: 324000 | F8: 282000 | G8: 152000 | H8: 158000 | I8: 27000 | J8: 102000 | K8: 1705000
A9: R 1 800-R 2 499 | B9: 300000 | C9: 169000 | D9: 669000 | E9: 535000 | F9: 341000 | G9: 235000 | H9: 205000 | I9: 54000 | J9: 193000 | K9: 2702000
A10: R 2 500-R 4 999 | B10: 467000 | C10: 245000 | D10: 1419000 | E10: 834000 | F10: 444000 | G10: 451000 | H10: 371000 | I10: 108000 | J10: 419000 | K10: 4758000
A11: R 5000-R 9 999 | B11: 373000 | C11: 144000 | D11: 1201000 | E11: 610000 | F11: 198000 | G11: 239000 | H11: 190000 | I11: 71000 | J11: 445000 | K11: 3473000
A12: R 10 000- R19 999 | B12: 142000 | C12: 100000 | D12: 781000 | E12: 319000 | F12: 101000 | G12: 117000 | H12: 121000 | I12: 44000 | J12: 369000 | K12: 2095000
A13: R20 000-R39 999 | B13: 65000 | C13: 37000 | D13: 504000 | E13: 111000 | F13: 54000 | G13: 55000 | H13: 55000 | I13: 22000 | J13: 248000 | K13: 1160000
A14: R40 000+ | B14: 15000 | C14: 10000 | D14: 201000 | E14: 49000 | F14: 19000 | G14: 11000 | H14: 16000 | I14: 10000 | J14: 168000 | K14: 499000
A15: Do not know, refused to say | B15: 4000 | C15: 30000 | D15: 114000 | E15: 141000 | F15: —a | G15: 8000 | H15: 34000 | I15: 3000 | J15: 30000 | K15: 375000
A16: Total | B16: 1781000 | C16: 999000 | D16: 5779000 | E16: 3292000 | F16: 1775000 | G16: 1493000 | H16: 1390000 | I16: 380000 | J16: 2136000 | K16: 19005000
A17: Source: Stats SA, General Household Survey 2023 Addendum tables, Statistical release P0318, 23 May 2024, Table 16.3, p156
A18: a Figures too small to provide reliable estimates.

Sheet % HH expenditure by prov%
A2: Monthly household expenditure categories by province (proportionsa), 2023
A4: Category | B4: Eastern Cape | C4: Free State | D4: Gauteng | E4: KwaZulu-Natal | F4: Limpopo | G4: Mpumalanga | H4: North West | I4: Northern Cape | J4: Western Cape | K4: Total | M4: Category | N4: Eastern Cape | O4: Free State | P4: Gauteng | Q4: KwaZulu- Natal | R4: Limpopo | S4: Mpumalanga | T4: North West | U4: Northern Cape | V4: Western Cape | W4: Total
A5: R 0-R 399 | B5: =(B22/TOtal1782) -> 0.02582818641 | C5: =(C22/Total992) -> 0.03103103103 | D5: =(D22/Total5772) -> 0.0150545077 | E5: =(E22/Total3293) -> 0.01883353584 | F5: =(F22/Total1772) -> 0.02197183099 | G5: =(G22/Total1494) -> 0.01942397857 | H5: =(H22/TOtal1392) -> 0.03597122302 | I5: =(I22/Total382) -> 0.01842105263 | J5: =(J22/Total2132) -> 0.01076779026 | K5: =(K22/Total19002) -> 0.02057353328 | M5: R 0-R 399 | N5: 36000 | O5: 35000 | P5: 88000 | Q5: 74000 | R5: 52000 | S5: 21000 | T5: 45000 | U5: 12000 | V5: 8000 | W5: 380000
A6: R 400-R 799 | B6: 0.04042672656 | C6: 0.05005005005 | D6: 0.02664820903 | E6: 0.02764277035 | F6: 0.05183098592 | G6: 0.05090421969 | H6: 0.0618705036 | I6: 0.02631578947 | J6: 0.02481273408 | K6: 0.03599052881 | M6: R 400-R 799 | N6: 75000 | O6: 58000 | P6: 187000 | Q6: 95000 | R6: 153000 | S6: 54000 | T6: 84000 | U6: 15000 | V6: 42000 | W6: 761000
A7: R 800-R 1 199 | B7: 0.07130825379 | C7: 0.06706706707 | D7: 0.04291399896 | E7: 0.06530984204 | F7: 0.1104225352 | G7: 0.07568653717 | H7: 0.07194244604 | I7: 0.05789473684 | J7: 0.0388576779 | K7: 0.06161536438 | M7: R 800-R 1 199 | N7: 124000 | O7: 75000 | P7: 319000 | Q7: 185000 | R7: 235000 | S7: 122000 | T7: 130000 | U7: 27000 | V7: 49000 | W7: 1265000
A8: R 1 200-R 1 799 | B8: 0.08309938237 | C8: 0.1161161161 | D8: 0.0686970064 | E8: 0.09842041312 | F8: 0.1588732394 | G8: 0.1018084394 | H8: 0.1136690647 | I8: 0.07105263158 | J8: 0.04775280899 | K8: 0.08971323336 | M8: R 1 200-R 1 799 | N8: 208000 | O8: 119000 | P8: 441000 | Q8: 409000 | R8: 295000 | S8: 183000 | T8: 183000 | U8: 32000 | V8: 85000 | W8: 1953000
A9: R 1 800-R 2 499 | B9: 0.168444694 | C9: 0.1691691692 | D9: 0.115763973 | E9: 0.1625151883 | F9: 0.1921126761 | G9: 0.1574012056 | H9: 0.1474820144 | I9: 0.1421052632 | J9: 0.09035580524 | K9: 0.1421731123 | M9: R 1 800-R 2 499 | N9: 333000 | O9: 164000 | P9: 699000 | Q9: 581000 | R9: 301000 | S9: 263000 | T9: 228000 | U9: 45000 | V9: 155000 | W9: 2769000
A10: R 2 500-R 4 999 | B10: 0.2622122403 | C10: 0.2452452452 | D10: 0.2455442118 | E10: 0.2533414338 | F10: 0.2501408451 | G10: 0.3020763563 | H10: 0.2669064748 | I10: 0.2842105263 | J10: 0.1961610487 | K10: 0.2503551697 | M10: R 2 500-R 4 999 | N10: 418000 | O10: 212000 | P10: 1377000 | Q10: 807000 | R10: 384000 | S10: 423000 | T10: 289000 | U10: 101000 | V10: 416000 | W10: 4427000
A11: R 5000-R 9 999 | B11: 0.2094329029 | C11: 0.1441441441 | D11: 0.2078214224 | E11: 0.1852976914 | F11: 0.1115492958 | G11: 0.1600803751 | H11: 0.1366906475 | I11: 0.1868421053 | J11: 0.2083333333 | K11: 0.1827413838 | M11: R 5000-R 9 999 | N11: 334000 | O11: 130000 | P11: 1009000 | Q11: 421000 | R11: 151000 | S11: 193000 | T11: 147000 | U11: 69000 | V11: 484000 | W11: 2938000
A12: R 10 000- R19 999 | B12: 0.07973048849 | C12: 0.1001001001 | D12: 0.1351444887 | E12: 0.09690157959 | F12: 0.05690140845 | G12: 0.07836570663 | H12: 0.08705035971 | I12: 0.1157894737 | J12: 0.172752809 | K12: 0.1102341489 | M12: R 10 000- R19 999 | N12: 137000 | O12: 100000 | P12: 723000 | Q12: 287000 | R12: 111000 | S12: 114000 | T12: 118000 | U12: 44000 | V12: 402000 | W12: 2037000
A13: R20 000-R39 999 | B13: 0.03649635036 | C13: 0.03703703704 | D13: 0.08721232047 | E13: 0.0337181045 | F13: 0.03042253521 | G13: 0.03683858004 | H13: 0.03956834532 | I13: 0.05789473684 | J13: 0.1161048689 | K13: 0.06103656932 | M13: R20 000-R39 999 | N13: 52000 | O13: 29000 | P13: 375000 | Q13: 142000 | R13: 25000 | S13: 50000 | T13: 52000 | U13: 20000 | V13: 286000 | W13: 1032000
A14: R40 000+ | B14: 0.0084222347 | C14: 0.01001001001 | D14: 0.034781104 | E14: 0.01488456865 | F14: 0.01070422535 | G14: 0.007367716008 | H14: 0.01151079137 | I14: 0.02631578947 | J14: 0.07865168539 | K14: 0.02625624836 | M14: R40 000+ | N14: 12000 | O14: 8000 | P14: 184000 | Q14: 59000 | R14: 11000 | S14: 9000 | T14: 12000 | U14: 3000 | V14: 95000 | W14: 393000
A15: Do not know, refused to say | B15: 0.002245929253 | C15: 0.03003003003 | D15: 0.0197265963 | E15: 0.04283110571 | F15: —b | G15: 0.005358338915 | H15: 0.02446043165 | I15: —b | J15: 0.01404494382 | K15: 0.01973164957 | M15: Do not know, refused to say | N15: 12000 | O15: 43000 | P15: 181000 | Q15: 138000 | R15: 9000 | S15: 11000 | T15: 60000 | U15: —a | V15: 55000 | W15: 518000
A16: Total | B16: 1 | C16: 1 | D16: 1 | E16: 1 | F16: 1 | G16: 1 | H16: 1 | I16: 1 | J16: 1 | K16: 1 | M16: Total | N16: 1742000 | O16: 975000 | P16: 5587000 | Q16: 3200000 | R16: 1729000 | S16: 1445000 | T16: 1349000 | U16: 371000 | V16: 2079000 | W16: 18477000
A18: Source: Stats SA, General Household Survey 2023 Addendum tables, Statistical release P0318, 23 May 2024, Table 16.3, p156
A19: a CRA calculations.
A20: b Figures too small to provide reliable estimates.
A21: Category | B21: Eastern Cape | C21: Free State | D21: Gauteng | E21: KwaZulu- Natal | F21: Limpopo | G21: Mpumalanga | H21: North West | I21: Northern Cape | J21: Western Cape | K21: Total
A22: R 0-R 399 | B22: 46000 | C22: 31000 | D22: 87000 | E22: 62000 | F22: 39000 | G22: 29000 | H22: 50000 | I22: 7000 | J22: 23000 | K22: 391000
A23: R 400-R 799 | B23: 72000 | C23: 50000 | D23: 154000 | E23: 91000 | F23: 92000 | G23: 76000 | H23: 86000 | I23: 10000 | J23: 53000 | K23: 684000
A24: R 800-R 1 199 | B24: 127000 | C24: 67000 | D24: 248000 | E24: 215000 | F24: 196000 | G24: 113000 | H24: 100000 | I24: 22000 | J24: 83000 | K24: 1171000
A25: R 1 200-R 1 799 | B25: 148000 | C25: 116000 | D25: 397000 | E25: 324000 | F25: 282000 | G25: 152000 | H25: 158000 | I25: 27000 | J25: 102000 | K25: 1705000
A26: R 1 800-R 2 499 | B26: 300000 | C26: 169000 | D26: 669000 | E26: 535000 | F26: 341000 | G26: 235000 | H26: 205000 | I26: 54000 | J26: 193000 | K26: 2702000
A27: R 2 500-R 4 999 | B27: 467000 | C27: 245000 | D27: 1419000 | E27: 834000 | F27: 444000 | G27: 451000 | H27: 371000 | I27: 108000 | J27: 419000 | K27: 4758000
A28: R 5000-R 9 999 | B28: 373000 | C28: 144000 | D28: 1201000 | E28: 610000 | F28: 198000 | G28: 239000 | H28: 190000 | I28: 71000 | J28: 445000 | K28: 3473000
A29: R 10 000- R19 999 | B29: 142000 | C29: 100000 | D29: 781000 | E29: 319000 | F29: 101000 | G29: 117000 | H29: 121000 | I29: 44000 | J29: 369000 | K29: 2095000
A30: R20 000-R39 999 | B30: 65000 | C30: 37000 | D30: 504000 | E30: 111000 | F30: 54000 | G30: 55000 | H30: 55000 | I30: 22000 | J30: 248000 | K30: 1160000
A31: R40 000+ | B31: 15000 | C31: 10000 | D31: 201000 | E31: 49000 | F31: 19000 | G31: 11000 | H31: 16000 | I31: 10000 | J31: 168000 | K31: 499000
A32: Do not know, refused to say | B32: 4000 | C32: 30000 | D32: 114000 | E32: 141000 | F32: —a | G32: 8000 | H32: 34000 | I32: 3000 | J32: 30000 | K32: 375000
A33: Total | B33: 1781000 | C33: 999000 | D33: 5779000 | E33: 3292000 | F33: 1775000 | G33: 1493000 | H33: 1390000 | I33: 380000 | J33: 2136000 | K33: 19005000

Sheet HH expenditure by sex#
C2: Monthly household expenditure categories by sexa (actual numbers), 2023
C4: Category | D4: Male head | E4: Female head | F4: Total
C5: R 0-R 399 | D5: 311000 | E5: 79000 | F5: =SUM(D5:E5) -> 390000
C6: R 400-R 799 | D6: 453000 | E6: 231000 | F6: =SUM(D6:E6) -> 684000
C7: R 800-R 1 199 | D7: 686000 | E7: 485000 | F7: 1171000
C8: R 1 200-R 1 799 | D8: 890000 | E8: 815000 | F8: 1705000
C9: R 1 800-R 2 499 | D9: 1304000 | E9: 1397000 | F9: 2702000
C10: R 2 500-R 4 999 | D10: 2447000 | E10: 2310000 | F10: 4758000
C11: R 5000-R 9 999 | D11: 2066000 | E11: 1407000 | F11: 3473000
C12: R 10 000- R19 999 | D12: 1328000 | E12: 766000 | F12: 2095000
C13: R20 000-R39 999 | D13: 818000 | E13: 332000 | F13: 1150000
C14: R40 000+ | D14: 415000 | E14: 84000 | F14: 499000
C15: Do not know, refused to say | D15: 242000 | E15: 133000 | F15: 379000
C16: Total | D16: 10963000 | E16: 8042000 | F16: =SUM(D16:E16) -> 19005000
B17: Source: Stats SA, General Household Survey 2023 Addendum tables, Statistical release P0318, 23 May 2024, Table 16.4, p157
B19: a Refers to the sex of the head of the household.

Sheet HH expenditure by sex%
A2: Monthly household expenditure categories by sexa (proportionsb), 2023
A4: Category | B4: Male head | C4: Female head | D4: Total | F4: Category | G4: Male head | H4: Female head | I4: Total | J4: Category | K4: Male head | L4: Female head | M4: Total
A5: R 0-R 399 | B5: =(K5/Total10964) -> 0.0283681474 | C5: =(L5/Total80425) -> 0.009823427008 | D5: =(M5/Total1900678) -> 0.02052091555 | F5: R 0-R 399 | G5: 289000 | H5: 90000 | I5: 380000 | J5: R 0-R 399 | K5: 311000 | L5: 79000 | M5: =SUM(K5:L5) -> 390000
A6: R 400-R 799 | B6: 0.04132080635 | C6: 0.02872419796 | D6: 0.03599052881 | F6: R 400-R 799 | G6: 469000 | H6: 292000 | I6: 761000 | J6: R 400-R 799 | K6: 453000 | L6: 231000 | M6: =SUM(K6:L6) -> 684000
A7: R 800-R 1 199 | B7: 0.06257411293 | C7: 0.060308381 | D7: 0.06161536438 | F7: R 800-R 1 199 | G7: 684000 | H7: 582000 | I7: 1265000 | J7: R 800-R 1 199 | K7: 686000 | L7: 485000 | M7: 1171000
A8: R 1 200-R 1 799 | B8: 0.08118215817 | C8: 0.1013429495 | D8: 0.08971323336 | F8: R 1 200-R 1 799 | G8: 1006000 | H8: 948000 | I8: 1953000 | J8: R 1 200-R 1 799 | K8: 890000 | L8: 815000 | M8: 1705000
A9: R 1 800-R 2 499 | B9: 0.1189455441 | C9: 0.1737130067 | D9: 0.1421731123 | F9: R 1 800-R 2 499 | G9: 1341000 | H9: 1428000 | I9: 2769000 | J9: R 1 800-R 2 499 | K9: 1304000 | L9: 1397000 | M9: 2702000
A10: R 2 500-R 4 999 | B10: 0.223205327 | C10: 0.2872419796 | D10: 0.2503551697 | F10: R 2 500-R 4 999 | G10: 2439000 | H10: 1988000 | I10: 4427000 | J10: R 2 500-R 4 999 | K10: 2447000 | L10: 2310000 | M10: 4758000
A11: R 5000-R 9 999 | B11: 0.188452066 | C11: 0.1749564785 | D11: 0.1827413838 | F11: R 5000-R 9 999 | G11: 1738000 | H11: 1200000 | I11: 2938000 | J11: R 5000-R 9 999 | K11: 2066000 | L11: 1407000 | M11: 3473000
A12: R 10 000- R19 999 | B12: 0.1211347259 | C12: 0.09524993783 | D12: 0.1102341489 | F12: R 10 000- R19 999 | G12: 1363000 | H12: 674000 | I12: 2037000 | J12: R 10 000- R19 999 | K12: 1328000 | L12: 766000 | M12: 2095000
A13: R20 000-R39 999 | B13: 0.07461461279 | C13: 0.04128326287 | D13: 0.060510392 | F13: R20 000-R39 999 | G13: 744000 | H13: 288000 | I13: 1032000 | J13: R20 000-R39 999 | K13: 818000 | L13: 332000 | M13: 1150000
A14: R40 000+ | B14: 0.03785460184 | C14: 0.01044516289 | D14: 0.02625624836 | F14: R40 000+ | G14: 324000 | H14: 68000 | I14: 393000 | J14: R40 000+ | K14: 415000 | L14: 84000 | M14: 499000
A15: Do not know, refused to say | B15: 0.02207424975 | C15: 0.01653817458 | D15: 0.01994212049 | F15: Do not know, refused to say | G15: 282000 | H15: 236000 | I15: 518000 | J15: Do not know, refused to say | K15: 242000 | L15: 133000 | M15: 379000
A16: Totalc | B16: 1 | C16: 1 | D16: =SUM(D5:D15) -> 1.000052618 | F16: Total | G16: 10683000 | H16: 7794000 | I16: 18477000 | J16: Total | K16: 10963000 | L16: 8042000 | M16: =SUM(K16:L16) -> 19005000
A18: Source: Stats SA, General Household Survey 2023 Addendum tables, Statistical release P0318, 23 May 2024, Table 16.4, p157
A20: a Refers to the sex of the head of the household.
A21: b CRA calculations.
A22: c Figures should add up vertically but may not, owing to rounding.

Sheet Distribution of final household
A2: Distribution of final household consumptiona by main expenditure group, 1999-2023
A4: Expenditure type | B4: 1999 | C4: 2010 | D4: 2013 | E4: 2016 | F4: 2017 | G4: 2018 | H4: 2019 | I4: 2020 | J4: 2021 | K4: 2022 | L4: 2023 | M4: 2022-23 | N4: 1999-2023
A5: Food and non-alcoholic beverages | B5: 0.205 | C5: 0.198 | D5: 0.199 | E5: 0.213 | F5: 0.214 | G5: 0.209 | H5: 0.211 | I5: 0.225 | J5: 0.157 | K5: 0.163 | L5: 0.168 | M5: =(L5-K5)/K5 -> 0.03067484663 | N5: =(L5-B5)/B5 -> -0.1804878049
A6: Alcoholic beverages, tobacco and narcotics | B6: 0.065 | C6: 0.05 | D6: 0.046 | E6: 0.048 | F6: 0.049 | G6: 0.049 | H6: 0.05 | I6: 0.044 | J6: 0.047 | K6: 0.04 | L6: 0.039 | M6: =(L6-K6)/K6 -> -0.025 | N6: =(L6-B6)/B6 -> -0.4
A7: Clothing and footwear | B7: 0.056 | C7: 0.049 | D7: 0.049 | E7: 0.052 | F7: 0.052 | G7: 0.05 | H7: 0.049 | I7: 0.04 | J7: 0.043 | K7: 0.041 | L7: 0.041 | M7: 0 | N7: -0.2678571429
A8: Housing, water, electricity, gas and other fuels | B8: 0.13 | C8: 0.154 | D8: 0.147 | E8: 0.149 | F8: 0.147 | G8: 0.148 | H8: 0.149 | I8: 0.161 | J8: 0.159 | K8: 0.151 | L8: 0.149 | M8: -0.01324503311 | N8: 0.1461538462
A9: Furnishings, household equipment and routine maintenance | B9: 0.084 | C9: 0.068 | D9: 0.065 | E9: 0.066 | F9: 0.067 | G9: 0.067 | H9: 0.067 | I9: 0.066 | J9: 0.058 | K9: 0.054 | L9: 0.054 | M9: 0 | N9: -0.3571428571
A10: Health | B10: 0.072 | C10: 0.063 | D10: 0.065 | E10: 0.07 | F10: 0.072 | G10: 0.073 | H10: 0.074 | I10: 0.074 | J10: 0.074 | K10: 0.074 | L10: 0.071 | M10: -0.04054054054 | N10: -0.01388888889
A11: Transport | B11: 0.146 | C11: 0.164 | D11: 0.183 | E11: 0.157 | F11: 0.152 | G11: 0.154 | H11: 0.151 | I11: 0.139 | J11: 0.155 | K11: 0.166 | L11: 0.171 | M11: 0.03012048193 | N11: 0.1712328767
A12: Communication | B12: 0.021 | C12: 0.033 | D12: 0.03 | E12: 0.027 | F12: 0.026 | G12: 0.026 | H12: 0.025 | I12: 0.028 | J12: 0.04 | K12: 0.038 | L12: 0.036 | M12: -0.05263157895 | N12: 0.7142857143
A13: Recreation, entertainment and culture | B13: 0.059 | C13: 0.043 | D13: 0.043 | E13: 0.046 | F13: 0.045 | G13: 0.045 | H13: 0.045 | I13: 0.04 | J13: 0.062 | K13: 0.059 | L13: 0.057 | M13: -0.03389830508 | N13: -0.03389830508
A14: Education | B14: 0.026 | C14: 0.033 | D14: 0.033 | E14: 0.036 | F14: 0.037 | G14: 0.037 | H14: 0.038 | I14: 0.042 | J14: 0.036 | K14: 0.034 | L14: 0.035 | M14: 0.02941176471 | N14: 0.3461538462
A15: Hotels, cafés, and restaurants | B15: 0.03 | C15: 0.028 | D15: 0.025 | E15: 0.027 | F15: 0.026 | G15: 0.027 | H15: 0.027 | I15: 0.017 | J15: 0.037 | K15: 0.043 | L15: 0.051 | M15: 0.1860465116 | N15: 0.7
A16: Miscellaneous goods and services | B16: 0.105 | C16: 0.117 | D16: 0.114 | E16: 0.11 | F16: 0.113 | G16: 0.115 | H16: 0.114 | I16: 0.123 | J16: 0.132 | K16: 0.135 | L16: 0.126 | M16: -0.06666666667 | N16: 0.2
A17: Totalb | B17: 1 | C17: =SUM(C5:C16) -> 1 | D17: 1 | E17: 1 | F17: =SUM(F5:F16) -> 1 | G17: =SUM(G5:G16) -> 1 | H17: =SUM(H5:H16) -> 1 | I17: 1 | J17: =SUM(J5:J16) -> 1 | K17: 1 | L17: 1 | M17: — | N17: —
A18: Source: SARB, Quarterly Bulletin March 2024, 2024, S-123
A19: a At current prices.
A20: b Figures should add up vertically but may not, owing to rounding.

Sheet Final consumption of households
A2: Final consumption expenditurea of households, 2015-23
B4: 2015 | C4: 2016 | D4: 2017 | E4: 2018 | F4: 2019 | G4: 2020 | H4: 2021 | I4: 2022 | J4: 2023 | K4: —Change—
B5: —Rbn— | K5: 2022-23 | L5: 2015-23
A6: Durable goodsb | B6: 278.1 | C6: =SUM(C7:C11) -> 261.9 | D6: 271.7 | E6: 289.4 | F6: 291.4 | G6: 270.1 | H6: 301.2 | I6: 302.2 | J6: 315.7 | K6: =(J6-I6)/I6 -> 0.04467240238 | L6: =(J6-Total15)/Total15 -> 0.1352031643
A7: Furniture, household appliances etc | B7: 55.4 | C7: 55.1 | D7: 56.3 | E7: 59.7 | F7: 59.8 | G7: 56.5 | H7: 59.9 | I7: 51.6 | J7: 54 | K7: =(J7-I7)/I7 -> 0.04651162791 | L7: -0.8058252427
A8: Personal transport equipment | B8: 134.8 | C8: 115.1 | D8: 113.2 | E8: 116.4 | F8: 114.5 | G8: 101.2 | H8: 120.6 | I8: 132.5 | J8: 142 | K8: 0.07169811321 | L8: -0.4893923049
A9: Computers and related equipment | B9: 10.3 | C9: 10.5 | D9: 13 | E9: 14.9 | F9: 14.6 | G9: 13 | H9: 13.2 | I9: 13.2 | J9: 13.6 | K9: 0.0303030303 | L9: -0.9510967278
A10: Recreation and entertainment goodsc | B10: 54.6 | C10: 58.4 | D10: 65.3 | E10: 71.7 | F10: 74.8 | G10: 77.7 | H10: 86 | I10: 82.7 | J10: 82.1 | K10: -0.007255139057 | L10: -0.7047824524
A11: Other durable goodsd | B11: 22.9 | C11: 22.8 | D11: 23.9 | E11: 26.7 | F11: 27.6 | G11: 21.7 | H11: 21.6 | I11: 22.3 | J11: 23.9 | K11: 0.07174887892 | L11: -0.9140596908
A12: Semi-durable goodsb | B12: =SUM(B13:B17) -> 254.5 | C12: =SUM(C13:C17) -> 261.8 | D12: 267.1 | E12: 272.6 | F12: 276.3 | G12: 231.6 | H12: 252 | I12: 256.3 | J12: 268.4 | K12: 0.04721030043 | L12: -0.03487953973
A13: Clothing and footwear | B13: 143.8 | C13: 147.9 | D13: 151.4 | E13: 151.5 | F13: 152.1 | G13: 121.4 | H13: 136.5 | I13: 142.7 | J13: 150.3 | K13: 0.05325858444 | L13: -0.4595469256
A14: Household textiles, furnishings, glassware, etc | B14: 36.5 | C14: 37.1 | D14: 38.3 | E14: 40.9 | F14: 42.4 | G14: 38.4 | H14: 39.6 | I14: 39.6 | J14: 42 | K14: 0.06060606061 | L14: -0.8489751888
A15: Motor car tyres, parts and accessories | B15: 45.2 | C15: 47.1 | D15: 45.8 | E15: 45.9 | F15: 47.1 | G15: 41.5 | H15: 43.3 | I15: 44.2 | J15: 46.6 | K15: 0.05429864253 | L15: -0.8324343761
A16: Recreation and entertainment goodse | B16: 16.4 | C16: 16.4 | D16: 17.7 | E16: 19.4 | F16: 19.7 | G16: 16.5 | H16: 18.3 | I16: 17.5 | J16: 17.1 | K16: -0.02285714286 | L16: -0.9385113269
A17: Miscellaneous goodsf | B17: 12.6 | C17: 13.3 | D17: 13.9 | E17: 14.8 | F17: 14.9 | G17: 13.8 | H17: 14.4 | I17: 12.3 | J17: 12.3 | K17: 0 | L17: -0.9557713053
A18: Non-durable goodsb | B18: 864.4 | C18: =SUM(C19:C24) -> 872.3 | D18: 869 | E18: 889.2 | F18: 899.9 | G18: 855.1 | H18: 892.7 | I18: 911.4 | J18: 904.6 | K18: -0.007461048936 | L18: 2.252786767
A19: Food, beverages and tobacco | B19: 529.4 | C19: 534 | D19: 530.5 | E19: 540.1 | F19: 554.6 | G19: 520.4 | H19: 545.6 | I19: 568.5 | J19: 566.6 | K19: -0.003342128408 | L19: 1.03739662
A20: Household fuel, power and water | B20: 118.1 | C20: 118.3 | D20: 115.8 | E20: 116.4 | F20: 114.4 | G20: 121.2 | H20: 125.5 | I20: 122.3 | J20: 120.1 | K20: -0.01798855274 | L20: -0.5681409565
A21: Household consumer goods | B21: 56.7 | C21: 58.3 | D21: 59.5 | E21: 62.1 | F21: 63.8 | G21: 61 | H21: 66.1 | I21: 70.6 | J21: 68.1 | K21: -0.03541076487 | L21: -0.7551240561
A22: Medical and pharmaceutical products | B22: 52.5 | C22: 55.2 | D22: 57.1 | E22: 58.1 | F22: 58.6 | G22: 60 | H22: 63.4 | I22: 63.9 | J22: 63.9 | K22: 0 | L22: -0.7702265372
A23: Petroleum products | B23: 81.7 | C23: 80.2 | D23: 80 | E23: 86 | F23: 82.8 | G23: 71.9 | H23: 71.5 | I23: 68 | J23: 69 | K23: 0.01470588235 | L23: -0.7518878101
A24: Recreation and entertainment goodsg | B24: 26.1 | C24: 26.3 | D24: 26 | E24: 26.5 | F24: 25.6 | G24: 20.7 | H24: 20.5 | I24: 18.1 | J24: 16.9 | K24: -0.06629834254 | L24: -0.9392304926
A25: Servicesb | B25: =SUM(B26:B31) -> 1418.2 | C25: =SUM(C26:C31) -> 1438.4 | D25: 1475.2 | E25: 1511.1 | F25: 1529.3 | G25: 1464.1 | H25: 1532.6 | I25: 1586.8 | J25: 1600.8 | K25: 0.008822788001 | L25: 4.756202805
A26: Renth | B26: 308.2 | C26: 312.5 | D26: 315.7 | E26: 319.1 | F26: 324.9 | G26: 327.6 | H26: 330.1 | I26: 332.5 | J26: 336.8 | K26: 0.01293233083 | L26: 0.2110751528
A27: Household services including domestic servants | B27: 61.7 | C27: 65.5 | D27: 70.6 | E27: 72.7 | F27: 73.1 | G27: 73.2 | H27: 74 | I27: 73.5 | J27: 72.5 | K27: -0.01360544218 | L27: -0.7393024092
A28: Medical services | B28: 147.7 | C28: 150.9 | D28: 154.7 | E28: 161.2 | F28: 159.1 | G28: 147.5 | H28: 156.4 | I28: 169.7 | J28: 162.4 | K28: -0.04301708898 | L28: -0.4160373966
A29: Transport and communication services | B29: 311.5 | C29: 316.8 | D29: 321.1 | E29: 327 | F29: 331.5 | G29: 318.2 | H29: 344.3 | I29: 359.8 | J29: 363.5 | K29: 0.01028349083 | L29: 0.3070837828
A30: Recreational entertainment and educational servicesi | B30: 210.8 | C30: 218.6 | D30: 221.6 | E30: 225.9 | F30: 225.9 | G30: 216.5 | H30: 220.4 | I30: 219.2 | J30: 223.7 | K30: 0.02052919708 | L30: -0.1956130888
A31: Miscellaneous servicesj | B31: 378.3 | C31: 374.1 | D31: 391.6 | E31: 405.2 | F31: 414.7 | G31: 381.1 | H31: 407.4 | I31: 432.2 | J31: 442 | K31: 0.02267468764 | L31: 0.5893563466
A32: TOTALb | B32: 2815.2 | C32: 2834.4 | D32: 2883 | E32: 2962.3 | F32: 2996.8 | G32: 2821 | H32: 2978.6 | I32: 3056.7 | J32: 3089.5 | K32: 0.01073052638 | L32: 10.1093132
A33: Source: SARB, Quarterly Bulletin March 2024, S-121
A34: a At constant 2015 prices.
A35: b Rand amounts should add up vertically but may not, owing to rounding.
A36: c Comprising audio-visual, photographic and communications equipment.
A37: d Jewellery, watches, therapeutic appliances, etc.
A38: e Comprising sport and camping equipment, games, hobbies, toys, books and recording media.
A39: f Electrical appliances for personal care and personal effects such as travel goods, car seats, umbrellas etc.
A40: g Comprising newspapers, magazines, stationary, pets and related products as well as garden products, plants and flowers.
A41: h Including imputed rent for owner-occupied dwellings.
A42: i Comprising cinema, park, museum and theatre entrance fees, subscriptions to cable television, licenses and hiring equipment.
A43: j After adjustment for net expenditure of non-residents in the domestic sector.

Sheet POVERTY.QOLI

Sheet Inflation-adjusted national pov
B2: POVERTY AND QUALITY OF LIFE
C4: Inflation-adjusted national poverty linesa, 2006-23
D6: UBPLb | E6: LBPLc | F6: FPLd
C7: Year | D7: —R—
C8: 2006 | D8: 575 | E8: 370 | F8: 219
C9: 2008 | D9: 682 | E9: 447 | F9: 274
C10: 2009 | D10: 709 | E10: 456 | F10: 318
C11: 2010 | D11: 733 | E11: 466 | F11: 320
C12: 2011 | D12: 779 | E12: 501 | F12: 335
C13: 2012 | D13: 834 | E13: 541 | F13: 366
C14: 2013 | D14: 883 | E14: 572 | F14: 386
C15: 2014 | D15: 942 | E15: 613 | F15: 417
C16: 2015 | D16: 992 | E16: 647 | F16: 441
C17: 2016 | D17: 1077 | E17: 714 | F17: 498
C18: 2017 | D18: 1138 | E18: 758 | F18: 531
C19: 2018 | D19: 1183 | E19: 785 | F19: 547
C20: 2019 | D20: 1227 | E20: 810 | F20: 561
C21: 2020 | D21: 1268 | E21: 840 | F21: 585
C22: 2021 | D22: 1335 | E22: 890 | F22: 624
C23: 2022 | D23: 1417 | E23: 945 | F23: 663
C24: 2023 | D24: 1558 | E24: 1058 | F24: 760
C25: 2006-23 | D25: =(D24-D8)/D8 -> 1.709565217 | E25: =(E24-E8)/E8 -> 1.859459459 | F25: 2.470319635
C26: Source: Stats SA, National Poverty Lines, 28 August 2023, Table 2, p4
C27: a Namely the Food Poverty Line (FPL), the Lower-Bound Poverty Line (LBPL), and the Upper-Bound Poverty Line (UBPL). These lines capture different degrees of poverty and allow the country to measure and monitor poverty at different levels.
C28: b Upper-Bound Poverty Line — Individuals falling under the UBPL can purchase both adequate food and non-food items.
C29: c Lower-Bound Poverty Line — Individuals falling under the LBPL do not have command over enough resources to purchase or consume both adequate food and non-food items and are therefore forced to sacrifice food to obtain essential non-food items.
C30: d Food Poverty Line — The FPL is the rand value below which individuals are unable to purchase or consume enough food to supply them with the minimum per-capita-per-day energy requirement for adequate health. The LBPL and the UBPL are derived using the FPL as a base, but also include a non-food component.

Sheet Households classified as poor
B2: Households classified as poora by metropolitan municipality, 2023
B4: Metropolitan area | C4: Total households | D4: Poor households | E4: As a proportion of total households
B5: Buffalo City | C5: 256000 | D5: 75000 | E5: =(D5/C5) -> 0.29296875
B6: Cape Town | C6: 1400000 | D6: 335000 | E6: =(D6/C6) -> 0.2392857143
B7: Ekurhuleni | C7: 1459000 | D7: 366000 | E7: =(D7/C7) -> 0.2508567512
B8: eThekwini | C8: 1308000 | D8: 328000 | E8: =(D8/C8) -> 0.250764526
B9: Johannesburg | C9: 2280000 | D9: 629000 | E9: 0.275877193
B10: Mangaung | C10: 306000 | D10: 89000 | E10: 0.2908496732
B11: Nelson Mandela Bay | C11: 377000 | D11: 56000 | E11: 0.1485411141
B12: Tshwane | C12: 1332000 | D12: 297000 | E12: =(D12/C12) -> 0.222972973
B13: All metros | C13: 8718000 | D13: 2175000 | E13: =(D13/C13) -> 0.2494838266
B14: Source: Stats SA, Selected Development Indicators, Metros 2022,Statistical release P03-18-20, 23 May 2024, Table 2.6, p11
B15: a Those with a monthly expenditure below R2 500.

Sheet Subjective poverty by province
B2: Subjective poverty indicatorsa, by province, 2022
C5: SPWQb | D5: MIQc | E5: IEQd
B6: Province | C6: —Proportion of households—
B7: Eastern Cape | C7: 0.291 | D7: 0.599 | E7: 0.556
B8: Free State | C8: 0.222 | D8: 0.474 | E8: 0.428
B9: Gauteng | C9: 0.213 | D9: 0.588 | E9: 0.477
B10: KwaZulu-Natal | C10: 0.311 | D10: 0.433 | E10: 0.369
B11: Limpopo | C11: 0.349 | D11: 0.439 | E11: 0.46
B12: Mpumalanga | C12: 0.226 | D12: 0.517 | E12: 0.582
B13: North West | C13: 0.443 | D13: 0.532 | E13: 0.499
B14: Northern Cape | C14: 0.216 | D14: 0.558 | E14: 0.504
B15: Western Cape | C15: 0.18 | D15: 0.447 | E15: 0.317
B16: South Africa | C16: 0.265 | D16: 0.516 | E16: 0.454
B17: Source: Stats SA, Subjective poverty in South Africa: Findings from the General Household Surveys 2019 and 2022, Figure 2.3, p6.
B18: a The three principal indicators used by Stats SA to measure subjective poverty in this report, are the Self-perceived Wealth Question (SPWQ), the Minimum Income Question (MIQ) and the Income Evaluation Question (IEQ).
B19: b SPWQ — "Would you say you and your household are at present wealthy, very comfortable, reasonably comfortable, just getting along, poor, very poor?" Households who responded 'poor' or 'very poor', are termed subjectively poor.
B20: c MIQ — “Which net household income per month in Rand would be the absolute minimum for your household? That is to say, that you would not be able to make ends meet if you earned less.” If reported per capita household consumption falls below this minimum income level, then the household (and all individuals living in it) is identified as poor.
B21: d “Is the total monthly income of your household higher, lower or more or less the same as the minimum income given for MIQ?” A direct way to use the MIQ available in the Living Conditions Survey is to ask respondents whether their household's actual level of income is above or below the minimum level reported in the previous question. In this way, respondents evaluate their own perception on whether they receive more than their reported minimum level (IEQ).

Sheet Subjective poverty by race
B2: Subjective poverty indicatorsa, by race, 2022
C5: SPWQb | D5: MIQc | E5: IEQd
B6: Race | C6: —Proportion of households—
B7: Black | C7: 0.301 | D7: 0.533 | E7: 0.489
B8: Coloured | C8: 0.173 | D8: 0.494 | E8: 0.424
B9: Indian/Asian | C9: 0.068 | D9: 0.409 | E9: 0.208
B10: White | C10: 0.037 | D10: 0.398 | E10: 0.201
B11: South Africa | C11: 0.265 | D11: 0.516 | E11: 0.454
B12: Source: Stats SA, Subjective poverty in South Africa: Findings from the General Household Surveys 2019 and 2022, Figure 2.6, p9.
B13: a The three principal indicators used by Stats SA to measure subjective poverty in this report, are the Self-perceived Wealth Question (SPWQ), the Minimum Income Question (MIQ) and the Income Evaluation Question (IEQ).
B14: b SPWQ — "Would you say you and your household are at present wealthy, very comfortable, reasonably comfortable, just getting along, poor, very poor?" Households who responded 'poor' or 'very poor', are termed subjectively poor.
B15: c MIQ — “Which net household income per month in Rand would be the absolute minimum for your household? That is to say, that you would not be able to make ends meet if you earned less.” If reported per capita household consumption falls below this minimum income level, then the household (and all individuals living in it) is identified as poor.
B16: d “Is the total monthly income of your household higher, lower or more or less the same as the minimum income given for MIQ?” A direct way to use the MIQ available in the Living Conditions Survey is to ask respondents whether their household's actual level of income is above or below the minimum level reported in the previous question. In this way, respondents evaluate their own perception on whether they receive more than their reported minimum level (IEQ).

Sheet Subjective poverty by education
B2: Subjective poverty indicatorsa, by level of education, 2022
C5: SPWQb | D5: MIQc | E5: IEQd
B6: Education level | C6: —Proportion of households—
B7: No schooling | C7: 0.408 | D7: 0.508 | E7: 0.555
B8: Some primary | C8: 0.413 | D8: 0.528 | E8: 0.531
B9: Completed primary | C9: 0.395 | D9: 0.51 | E9: 0.502
B10: Lower secondary | C10: 0.379 | D10: 0.556 | E10: 0.535
B11: Upper secondary | C11: 0.336 | D11: 0.555 | E11: 0.518
B12: NSC/Grade 12 | C12: 0.192 | D12: 0.527 | E12: 0.426
B13: Post school | C13: 0.056 | D13: 0.419 | E13: 0.278
B14: Other | C14: 0.241 | D14: 0.557 | E14: 0.512
B15: South Africa | C15: 0.265 | D15: 0.516 | E15: 0.454
B16: Source: Stats SA, Subjective poverty in South Africa: Findings from the General Household Surveys 2019 and 2022, Figure 2.3, p6.
B17: a The three principal indicators used by Stats SA to measure subjective poverty in this report, are the Self-perceived Wealth Question (SPWQ), the Minimum Income Question (MIQ) and the Income Evaluation Question (IEQ).
B18: b SPWQ — "Would you say you and your household are at present wealthy, very comfortable, reasonably comfortable, just getting along, poor, very poor?" Households who responded 'poor' or 'very poor', are termed subjectively poor.
B19: c MIQ — “Which net household income per month in Rand would be the absolute minimum for your household? That is to say, that you would not be able to make ends meet if you earned less.” If reported per capita household consumption falls below this minimum income level, then the household (and all individuals living in it) is identified as poor.
B20: d “Is the total monthly income of your household higher, lower or more or less the same as the minimum income given for MIQ?” A direct way to use the MIQ available in the Living Conditions Survey is to ask respondents whether their household's actual level of income is above or below the minimum level reported in the previous question. In this way, respondents evaluate their own perception on whether they receive more than their reported minimum level (IEQ).

Sheet QOLI

Sheet QOLI Index
A1: QOLI Index
A3: The QOLI Index was developed by the CRA, and provides an overview of the quality of life in South Africa. The index is based on ten weighted indicators that are indicative of the quality of life of a person or household. Each indicator has been translated into a score of between 0 and 10. A score closer to 0 would indicate poor performance on the indicator in question. Inversely, a score closer to 10 would indicate better performance.
A5: Quality of Life Index (QOLI)
A7: Province | B7: Matric pass rate | C7: Unemployment (expanded definition) | D7: Spending R10 000 or more per month | E7: Dwellings owned but not yet paid off to bank | F7: Access to piped water | G7: Electricity for cooking | H7: Access to a basic sanitation facility | I7: Refuse removal | J7: Medical aid coverage | K7: Murder rate | L7: Index score 1
A8: Eastern Cape | B8: 7.3 | C8: 4.8 | D8: 1.2 | E8: 0.3 | F8: 7 | G8: 7.8 | H8: 9 | I8: 4.2 | J8: 1.1 | K8: 3.4 | L8: =AVERAGE(B8:K8) -> 4.61
A9: Free State | B9: 8.6 | C9: 6 | D9: 1.4 | E9: 0.3 | F9: 9.4 | G9: 8.8 | H9: 8.7 | I9: 7.2 | J9: 1.5 | K9: 6.6 | L9: =AVERAGE(B9:K9) -> 5.85
A10: Gauteng | B10: 8.3 | C10: 5.9 | D10: 2.3 | E10: 1.2 | F10: 9.8 | G10: 8.5 | H10: 9.2 | I10: 8.4 | J10: 2.2 | K10: 6.5 | L10: 6.23
A11: KwaZulu-Natal | B11: 7.7 | C11: 5.1 | D11: 1.5 | E11: 0.6 | F11: 8.4 | G11: 8.7 | H11: 8.3 | I11: 5.1 | J11: 1.1 | K11: 4.4 | L11: 5.09
A12: Limpopo | B12: 6.7 | C12: 5.2 | D12: 0.8 | E12: 0.2 | F12: 6.9 | G12: 6.4 | H12: 6.3 | I12: 2.4 | J12: 0.9 | K12: 8.3 | L12: 4.41
A13: Mpumalanga | B13: 7.4 | C13: 5.2 | D13: 1.2 | E13: 0.3 | F13: 8.7 | G13: 7.6 | H13: 6.4 | I13: 4.2 | J13: 1 | K13: 7.5 | L13: 4.95
A14: North West | B14: 7.8 | C14: 5.1 | D14: 1.4 | E14: 0.3 | F14: 8.5 | G14: 8.3 | H14: 7.3 | I14: 5.1 | J14: 1.4 | K14: 7.5 | L14: 5.27
A15: Northern Cape | B15: 7.1 | C15: 5.4 | D15: 1.8 | E15: 0.5 | F15: 9.2 | G15: 8 | H15: 8.4 | I15: 6.2 | J15: 1.6 | K15: 7.2 | L15: 5.54
A16: Western Cape | B16: 8.1 | C16: 6.9 | D16: 3.8 | E16: 1.6 | F16: 9.9 | G16: 7.9 | H16: 9.6 | I16: 8.9 | J16: 2.5 | K16: 4.2 | L16: 6.34
A17: South Africa | B17: 7.6 | C17: 5.6 | D17: 1.9 | E17: 0.8 | F17: 8.9 | G17: 8.1 | H17: 8.4 | I17: 6.3 | J17: 1.6 | K17: 5.8 | L17: 5.5
A18: Race | B18: Matric pass rate | C18: Unemployment (expanded definition) | D18: Spending R10 000 or more per month | E18: Dwellings owned but not yet paid off to bank | F18: Access to piped water | G18: Electricity for cooking | H18: Access to a basic sanitation facility | I18: Refuse removal | J18: Medical aid coverage | K18: Murder rate | L18: Index score 1a | M18: Index score 2a
A19: Black | B19: 7.9 | C19: 5.2 | D19: 1.2 | E19: 0.4 | F19: 8.7 | G19: 8.2 | H19: 8.1 | I19: 5.6 | J19: 1 | K19: (5.8) | L19: =AVERAGE(B19:J19) -> 5.144444444 | M19: 5.2
A20: Coloured | B20: 8.1 | C20: 6.4 | D20: 3 | E20: 1.4 | F20: 9.9 | G20: 8.2 | H20: 9.6 | I20: 9.2 | J20: 1.8 | K20: (5.8) | L20: =AVERAGE(B20:J20) -> 6.4 | M20: 6.3
A21: Indian/Asian | B21: 9 | C21: 7.4 | D21: 6.1 | E21: 2.5 | F21: 9.8 | G21: 8.4 | H21: 9.9 | I21: 9.5 | J21: 4.9 | K21: (5.8) | L21: 7.5 | M21: 7.3
A22: White | B22: 9.9 | C22: 8.9 | D22: 7 | E22: 2.9 | F22: 9.4 | G22: 7.5 | H22: 9.9 | I22: 9 | J22: 7.2 | K22: (5.8) | L22: 7.966666667 | M22: 7.8
A23: South Africa | B23: 8 | C23: 5.6 | D23: 1.9 | E23: 0.8 | F23: 8.9 | G23: 8.1 | H23: 8.4 | I23: 6.3 | J23: 1.6 | K23: (5.8) | L23: 5.6 | M23: 5.5
A24: a Statistics for the murder rate by race were unavailable. Therefore, Index Score 1 by race serves as an aggregate for all the indicators, excluding the murder rate. Index Score 2 by race serves as an aggregate for all of the indicators, with the national murder rate used for each population group. There is not much of a difference between the final index scores, whether or not the murder rate is included.

Sheet Macros
A2: A | B2: HEAD 1 | C2: HELVETICA NEUE 21 pt
A4: B | B4: HEAD 2 | C4: Helvetica Neue 18 pt
G5: jhfkhgf
A6: C | B6: HEAD 3 | C6: Helvetica Neue 16 pt
A8: D | B8: HEAD 4 | C8: Helvetica Neue 14 pt
A10: E | B10: HEAD 5 | C10: Lucia 12 pt
A12: F | B12: HEAD 6 | C12: Helvetica Neue 13 pt
A14: G | B14: HEAD 7 | C14: Helvetica Neue 12 pt
A16: H | B16: HEAD 8 | C16: Helvetica Neue 11 pt | D16: Source, Footnote, Text
